{"text_format":"1","workbook":"xlsx","n_sheets":8,"sheets":["Instructions","I. Project Configuration","II. Technical Validation","III. Power Flow Model","IV. Dynamic Model","V. IR Validation & Comments","Version Control","Choices - to be hidden"],"not_rendered":{"charts":2,"images":2,"macros":1,"external_links":0,"defined_names":76,"comments":0,"pivot_tables":0},"unopened":[],"bounds":{"document_bytes":16777216,"sheet_cells":100000,"rows_first":2000,"rows_last":500,"rows_between":2000,"halvings":0,"cell_chars":16384,"cell_head_chars":4096},"cells_cut":0,"cells_raw":0,"read":"whole","date_system":"1900"}

{"sheet":"Instructions","index":0,"n_rows":71,"n_cols":3,"rows_kept":71,"cut":false,"hidden":false,"merged":[[59,1,59,2],[60,1,60,2],[62,1,62,2],[56,1,56,2],[23,0,23,2],[36,1,36,2],[37,1,37,2],[35,1,35,2],[28,0,28,2],[30,0,30,2],[33,1,33,2],[42,1,42,2],[44,1,44,2],[43,1,43,2],[38,1,38,2],[54,1,55,2],[70,1,70,2],[67,1,67,2],[65,1,65,2],[47,1,47,2],[66,1,66,2],[68,1,68,2],[69,1,69,2],[61,1,61,2],[64,1,64,2],[63,1,63,2],[58,0,58,2],[57,0,57,2],[52,1,52,2],[49,1,49,2],[50,1,50,2],[51,1,51,2],[0,0,3,2],[26,0,26,2],[31,1,31,2],[32,1,32,2],[24,0,24,2],[7,0,7,2],[22,0,22,2],[29,0,29,2],[8,0,8,2],[14,0,14,2],[9,0,13,0],[16,0,21,0],[15,0,15,1],[27,0,27,2],[4,0,6,1],[25,0,25,2],[54,0,55,0],[53,1,53,2],[39,1,39,2],[41,1,41,2],[48,1,48,2],[40,1,40,2],[45,1,45,2],[46,1,46,2]]}
["Attachment A, Generating Facility Data \nto GIDAP Appendix 1 Interconnection Request \n\nGENERATING FACILITY DATA"]
[]
[]
[]
[" ",null,"CAISO Public Document"]
[null,null,"Version: SAMPLE WIND"]
[null,null,"Last Updated: March 15, 2019"]
[" "]
["Project Information Completed by Interconnection Customer (Must match Appendix 1)"]
[null,"Project Name","Sample Wind IR"]
[null,"Q# (if assigned)",1234]
[null,"Interconnection Customer Name","ABC, Inc."]
[null,"Interconnection Customer Contact","John Doe"]
[null,"Requested Point of Interconnection (POI)","McMicken Substation 750kV"]
["Please read the instructions below!"]
["Table of Contents",null,"Descriptions"]
[null,"Instructions","Project Specific Information (above) & Guidelines for this document"]
[null,"I. Project Configuration","Project Data Input "]
[null,"II. Technical Validation","Validation Calcs based on Project Data input on Tab I."]
[null,"III. Power Flow Model","Power Flow Model Tool"]
[null,"IV. Dynamic Model","Dynamic Model Data Tool"]
[null,"V. IR Validation & Comments","IR Review and Validation questions and verifications"]
[]
["Color Codes:"]
["Green Cells: Choose input from options"]
["White Cells: Enter input data/notes - default values may be pre-populated and can be changed"]
["Orange Cells:  Predetermined/populated Cells - Can be changed"]
["Yellow Cells:  Headers / Titles - DO NOT CHANGE"]
["Gray Cells:  Calculations or intentionally blank - DO NOT CHANGE"]
[]
["Interconnection Customer Directions:"]
[1,"On the I. Project Configuration tab."]
[null,"      Complete Data in Section I. and II., then click the Prep Data button in blue area"]
[null,"              Note that section will hide automatically based on data input need.  Press Show All button to display all sections"]
[null,"      Complete remaining data input as necessary for project"]
[]
[2,"On the II. Technical Validation tab, Click the Generator Data Validation Check Button "]
[3,"      Review the feedback from the validation check on the Technical Validation tab"]
[4,"      Fix any issues that remain and repeat steps 1-4 as necessary."]
[null,"Please fix all errors and explain warnings identified on the Technical Validation tab."]
[]
[5,"On the III. Power Flow Model tab (Optional)"]
[6,"      Input Power Flow data and click the Calculate Parameters button"]
[7,"      Fill in and ensure all specifications and technical data is correct - repeat step 6-7 as necessary."]
[8,"      Click the Create .epc Entries button"]
[9,"      Review the feedback on tab, copy the .ecp entries into the acutal .epc file, test the .epc model in GE PSLF."]
[10,"      Fix any issues that remain and repeat 6-10 as necessary"]
[]
[11,"On the IV. Dynamic Model tab (Optional)"]
[12,"      Input Dynamic model technical data "]
[13,"      Click the Create .dyd Entries button"]
[14,"      Review the feedback on tob, copy the .dyd entries into the actual .dyd file, test the .dyd model in GE PSLF."]
[15,"      Fix any issues that remain and repeat 12-15 as necessary"]
[]
[16,"On the V. IR Validation & Comments tab, answer each question by choosing an answer (provide comment as necessary).  Must confirm all issues and tasks are complete.  Objective is to answer YES or N/A to all questions."]
[]
[null,"Please answer all questions on the IR Validation & Comment tab - goal is to answer all with Yes or NA."]
[]
["A Complete Interconnection Request Package will include:"]
[1,"Interconnection Study Deposit of $150,000"]
[2,"A completed application in the form of Appendix 1, Word doc"]
[null,"a.  Including the Study agreement, Authorized signatory document, and state of incorporation for the IC's company"]
[3,"A completed Attachment A to Appednix 1, Excel doc"]
[4,"Demonstration of Site Exclusivity or posting of a SE Deposit in lieu of"]
[5,"A load flow model"]
[6,"A dynamic data file"]
[7,"A reactive power capability document"]
[8,"A site drawing"]
[9,"A single-line diagram"]
[10,"A flat run plot and a bump test plot from the positive sequence transient stability simulation application  "]
[11,"A plot showing the requested MW at the Point of Interconnection from the positive sequence load flow application"]

{"sheet":"I. Project Configuration","index":1,"n_rows":425,"n_cols":17,"rows_kept":425,"cut":false,"hidden":false,"merged":[[163,5,163,6],[162,11,162,12],[156,4,159,4],[156,1,159,3],[248,0,250,0],[284,1,284,3],[297,4,300,4],[318,1,318,3],[305,1,305,3],[168,0,169,0],[171,0,174,0],[175,0,178,0],[179,0,182,0],[183,0,186,0],[200,3,200,13],[183,2,186,3],[183,1,186,1],[188,9,191,10],[175,4,178,4],[171,5,174,6],[188,0,191,0],[188,5,191,6],[179,9,182,10],[203,6,203,12],[205,6,205,12],[268,1,268,3],[274,1,274,3],[297,8,297,10],[319,1,319,3],[315,1,315,3],[306,1,306,3],[300,5,300,13],[346,1,346,8],[332,0,334,0],[337,0,339,0],[322,2,322,3],[332,1,334,1],[336,1,336,3],[324,1,324,3],[325,1,326,1],[325,2,325,3],[326,2,326,3],[344,1,344,3],[311,1,311,3],[302,1,302,3],[315,5,315,13],[310,5,310,13],[319,12,326,13],[319,9,326,10],[304,1,304,3],[316,1,316,3],[317,1,317,3],[314,1,314,3],[301,1,301,3],[298,1,298,3],[263,8,263,10],[264,8,264,10],[263,11,263,13],[264,11,264,13],[297,1,297,3],[297,5,297,7],[310,1,310,3],[295,1,295,13],[294,1,294,13],[276,5,276,13],[281,1,281,3],[286,2,286,3],[288,2,288,3],[267,1,267,3],[264,1,264,3],[289,2,289,3],[269,1,269,3],[2,14,2,16],[233,7,234,10],[233,6,234,6],[93,1,93,3],[94,1,94,3],[41,10,42,10],[41,11,42,11],[24,1,24,3],[26,1,26,3],[41,1,42,3],[41,4,42,4],[41,5,42,5],[41,6,42,6],[41,7,42,7],[175,9,178,10],[175,11,178,12],[212,11,212,12],[41,8,42,8],[25,1,25,3],[45,2,46,3],[45,10,46,10],[91,13,92,13],[74,10,75,10],[110,1,110,3],[192,0,195,0],[196,0,199,0],[175,1,178,1],[95,1,95,3],[168,1,169,3],[91,0,92,0],[188,1,191,1],[188,2,191,3],[148,0,151,0],[152,0,155,0],[156,0,159,0],[161,2,161,3],[162,2,162,3],[163,2,163,3],[164,2,164,3],[129,1,129,3],[130,1,130,3],[131,1,131,3],[126,1,126,3],[148,1,151,3],[166,1,166,3],[143,1,143,13],[128,1,128,3],[147,7,147,8],[10,0,11,0],[74,0,75,0],[76,0,77,0],[80,0,81,0],[82,0,83,0],[12,1,12,13],[45,0,46,0],[45,7,46,7],[45,8,46,8],[56,0,57,0],[47,1,47,2],[47,3,47,13],[56,1,57,3],[56,5,57,5],[56,6,57,6],[56,7,57,7],[56,8,57,8],[80,13,81,13],[68,1,68,3],[76,1,77,3],[72,1,72,3],[73,1,73,3],[74,8,75,8],[69,1,69,3],[138,1,138,3],[139,2,140,2],[141,1,141,13],[147,9,147,10],[147,13,199,13],[163,9,163,10],[168,7,169,8],[168,9,169,10],[162,9,162,10],[168,5,169,6],[162,7,162,8],[171,9,174,10],[171,11,174,12],[164,5,164,6],[183,5,186,6],[161,9,161,10],[156,5,159,6],[152,5,155,6],[161,5,161,6],[161,1,164,1],[161,11,161,12],[160,1,160,3],[156,7,159,8],[156,9,159,10],[100,1,100,3],[171,7,174,8],[152,4,155,4],[192,7,195,8],[192,9,195,10],[156,11,159,12],[152,7,155,8],[152,9,155,10],[175,5,178,6],[188,4,191,4],[192,1,195,1],[192,11,195,12],[152,11,155,12],[163,7,163,8],[162,5,162,6],[161,7,161,8],[117,1,117,3],[148,7,151,8],[148,5,151,6],[145,6,146,13],[111,1,111,3],[104,2,105,2],[119,1,119,3],[145,4,146,4],[121,1,121,3],[120,1,120,3],[108,1,108,13],[103,1,103,3],[98,1,98,3],[88,1,88,3],[109,1,109,3],[115,1,115,3],[91,4,92,4],[91,6,92,6],[91,7,92,7],[106,1,106,13],[112,1,112,13],[113,1,113,13],[114,1,114,3],[91,9,92,9],[91,8,92,8],[118,1,118,3],[107,1,107,13],[97,1,97,13],[101,1,101,3],[102,1,102,3],[91,10,92,10],[99,1,99,3],[241,4,250,4],[242,1,243,2],[240,7,240,8],[216,9,216,10],[221,1,221,13],[216,5,216,6],[218,5,218,12],[222,1,222,13],[216,1,216,3],[236,11,236,12],[232,1,232,13],[236,4,238,4],[235,1,235,2],[248,1,250,3],[236,7,236,8],[236,9,236,10],[242,6,243,12],[227,4,230,4],[224,4,225,4],[216,7,216,8],[166,7,166,8],[166,9,166,10],[166,11,166,12],[223,1,223,13],[183,4,186,4],[179,4,182,4],[183,11,186,12],[215,11,215,12],[203,4,205,4],[206,1,206,3],[205,1,205,3],[215,5,215,6],[207,1,207,3],[208,1,208,3],[196,1,199,3],[196,4,199,4],[206,5,206,6],[210,11,210,12],[207,11,207,12],[213,11,213,12],[207,5,207,6],[217,7,217,8],[217,9,217,10],[215,9,215,10],[217,5,217,6],[217,1,217,3],[213,1,213,3],[122,1,122,3],[123,1,123,3],[124,1,124,3],[127,1,127,3],[145,1,146,3],[147,5,147,6],[214,5,214,6],[210,1,210,3],[212,1,212,3],[209,5,209,6],[210,5,210,6],[166,5,166,6],[215,1,215,3],[148,4,151,4],[152,1,155,3],[132,1,132,3],[133,1,133,3],[134,1,134,3],[135,1,135,3],[136,1,136,3],[137,1,137,3],[215,7,215,8],[213,7,213,8],[213,9,213,10],[213,5,213,6],[207,9,207,10],[214,1,214,3],[214,11,214,12],[208,11,208,12],[209,11,209,12],[211,11,211,12],[214,9,214,10],[207,7,207,8],[208,9,208,10],[209,7,209,8],[209,9,209,10],[211,9,211,10],[210,7,210,8],[211,5,211,6],[212,5,212,6],[211,7,211,8],[200,1,200,2],[196,11,199,12],[204,1,204,3],[204,5,204,12],[244,6,245,12],[49,1,49,3],[50,1,50,3],[60,1,60,3],[163,11,163,12],[164,7,164,8],[164,9,164,10],[80,12,81,12],[148,11,151,12],[145,5,146,5],[217,11,217,12],[236,5,236,6],[233,1,234,2],[224,2,225,3],[218,1,218,3],[216,11,216,12],[235,6,235,11],[201,1,201,13],[206,9,206,10],[202,1,202,13],[188,7,191,8],[203,1,203,3],[171,4,174,4],[175,2,178,3],[210,9,210,10],[209,1,209,3],[183,7,186,8],[183,9,186,10],[192,4,195,4],[192,5,195,6],[179,11,182,12],[179,7,182,8],[168,4,169,4],[170,5,170,12],[168,11,169,12],[175,7,178,8],[179,5,182,6],[403,1,403,9],[383,10,403,13],[264,5,264,7],[268,4,269,4],[281,5,281,13],[265,1,265,3],[276,1,276,3],[359,1,361,1],[357,1,357,3],[358,1,358,3],[354,1,356,1],[354,2,354,3],[356,2,356,3],[355,2,355,3],[359,2,359,3],[360,2,360,3],[332,5,334,10],[332,4,334,4],[353,1,353,3],[336,6,336,10],[280,1,280,3],[342,1,342,3],[296,1,296,3],[297,11,297,13],[380,3,380,13],[302,4,303,4],[424,1,425,7],[382,1,382,13],[383,1,383,3],[385,1,385,3],[386,1,386,3],[389,1,389,3],[398,1,398,3],[399,1,399,3],[400,1,400,3],[401,1,401,3],[402,1,402,3],[387,1,388,1],[390,1,391,1],[387,2,387,3],[420,1,422,7],[390,2,390,3],[389,5,389,9],[388,2,388,3],[391,2,391,3],[405,1,405,13],[408,1,411,7],[413,1,418,7],[408,9,422,10],[404,1,404,13],[393,2,393,3],[248,5,250,12],[240,5,240,6],[246,1,247,2],[237,1,241,2],[262,1,262,3],[273,1,273,3],[298,5,298,7],[298,8,298,10],[290,1,290,3],[285,6,292,7],[291,2,291,3],[244,1,245,2],[263,5,263,7],[291,1,292,1],[298,11,298,13],[283,1,283,3],[279,1,279,3],[286,1,289,1],[270,1,270,3],[271,1,271,3],[380,1,380,2],[26,4,28,4],[30,4,31,4],[32,3,32,13],[41,12,42,12],[1,1,1,3],[1,5,1,13],[59,1,59,13],[48,1,48,13],[67,1,67,13],[58,1,58,2],[58,3,58,13],[18,1,18,3],[27,1,28,2],[16,1,16,3],[44,1,44,3],[54,1,54,3],[61,4,65,4],[55,1,55,3],[2,1,2,13],[3,1,3,3],[9,1,9,3],[45,12,46,12],[45,13,46,13],[4,1,4,3],[5,1,5,3],[6,1,6,3],[7,1,7,3],[8,1,8,3],[13,1,13,13],[15,1,15,3],[17,1,17,3],[21,1,21,3],[22,1,22,3],[10,6,10,7],[10,4,11,4],[10,5,11,5],[14,1,14,3],[20,1,20,3],[19,1,19,3],[41,9,42,9],[38,1,38,3],[32,1,32,2],[56,11,57,11],[61,1,61,3],[62,1,62,3],[65,1,65,3],[71,1,71,3],[80,9,81,9],[80,1,81,3],[50,4,52,4],[66,3,66,13],[56,4,57,4],[52,2,52,3],[66,1,66,2],[56,13,57,13],[56,9,57,9],[56,10,57,10],[41,13,42,13],[45,1,46,1],[80,10,81,10],[80,8,81,8],[80,6,81,6],[45,11,46,11],[43,1,43,3],[84,1,85,1],[84,2,84,3],[80,7,81,7],[74,13,75,13],[73,4,77,4],[76,13,77,13],[74,1,75,3],[74,5,75,5],[74,6,75,6],[74,7,75,7],[76,7,77,7],[79,1,79,3],[80,5,81,5],[82,1,83,3],[85,2,85,3],[74,9,75,9],[74,11,75,11],[74,12,75,12],[56,12,57,12],[63,1,63,3],[64,2,64,3],[51,1,51,3],[45,9,46,9],[39,1,39,3],[40,1,40,3],[261,1,261,13],[224,5,225,12],[240,11,240,12],[212,7,212,8],[91,11,92,11],[91,12,92,12],[15,4,22,4],[30,1,30,3],[31,1,31,3],[36,1,36,3],[29,1,29,3],[35,1,35,13],[37,1,37,3],[241,9,241,10],[241,11,241,12],[44,4,46,4],[125,1,125,3],[116,1,116,3],[179,2,182,3],[179,1,182,1],[227,5,230,12],[219,2,219,3],[287,2,287,3],[164,11,164,12],[196,5,199,6],[208,5,208,6],[208,7,208,8],[214,7,214,8],[212,9,212,10],[196,7,199,8],[196,9,199,10],[171,2,174,3],[260,1,260,13],[171,1,174,1],[211,1,211,3],[237,5,237,6],[237,7,237,8],[237,9,237,10],[266,1,266,3],[227,2,230,3],[246,6,247,12],[272,1,272,3],[165,1,165,3],[188,11,191,12],[206,7,206,8],[192,2,195,3],[53,1,53,3],[45,6,46,6],[45,5,46,5],[91,1,92,3],[91,5,92,5],[96,1,96,3],[89,1,89,3],[80,4,83,4],[90,1,90,3],[87,1,87,3],[86,1,86,13],[78,1,78,13],[76,8,77,8],[76,9,77,9],[76,10,77,10],[76,5,77,5],[76,6,77,6],[76,11,77,11],[80,11,81,11],[76,12,77,12],[70,1,70,3],[148,9,151,10],[144,1,144,13],[147,1,147,3],[147,11,147,12],[239,7,239,8],[239,9,239,10],[239,11,239,12],[292,2,292,3],[285,1,285,3],[275,1,275,3],[278,1,278,3],[277,1,277,3],[282,1,282,3],[263,1,263,3],[266,5,266,13],[263,4,266,4],[259,1,259,13],[285,12,292,13],[285,9,292,10],[241,5,241,6],[240,9,240,10],[255,1,255,3],[241,7,241,8],[252,13,254,13],[378,1,378,3],[361,2,361,3],[367,2,367,3],[299,1,299,3],[300,1,300,3],[343,1,343,3],[352,1,352,3],[350,1,351,1],[350,2,350,3],[351,2,351,3],[323,2,323,3],[313,1,313,3],[347,1,347,3],[348,1,348,3],[345,1,345,3],[341,1,341,4],[307,1,307,3],[308,1,308,3],[312,1,312,3],[309,1,309,3],[303,1,303,3],[337,4,339,4],[349,1,349,3],[320,2,320,3],[371,1,371,3],[366,2,366,3],[145,0,146,0],[372,2,372,3],[368,4,368,8],[362,4,362,8],[363,2,363,3],[319,6,326,7],[331,6,331,10],[329,1,330,13],[320,1,323,1],[327,1,327,13],[349,5,349,8],[353,5,353,8],[337,5,339,10],[332,2,334,3],[337,1,339,1],[337,2,339,3],[321,2,321,3],[331,1,331,3],[328,1,328,13],[293,1,293,13],[284,5,284,13],[318,5,318,13],[396,1,397,1],[396,2,396,3],[397,2,397,3],[395,5,395,9],[364,2,364,3],[373,2,373,3],[369,2,369,3],[370,2,370,3],[358,4,358,8],[362,1,362,3],[365,1,365,3],[371,4,371,8],[381,1,381,13],[365,4,365,8],[368,1,368,3],[374,1,374,3],[375,1,375,3],[376,1,376,3],[392,1,392,3],[393,1,394,1],[394,2,394,3],[395,1,395,3],[379,1,379,8],[377,1,377,3],[0,0,0,13],[203,13,220,13],[251,1,251,13],[252,5,254,12],[256,1,256,3],[257,1,257,3],[252,1,254,3],[258,1,258,2],[219,5,219,6],[220,5,220,6],[220,7,220,8],[220,9,220,10],[220,11,220,12],[219,7,219,8],[219,9,219,10],[219,11,219,12],[206,11,206,12],[142,1,142,13],[33,0,34,13],[10,1,11,3],[23,1,23,3],[220,2,220,3],[237,11,237,12],[239,5,239,6]]}
[{"$f":"Instructions!C10","v":"Sample Wind IR"}]
["Item #",null,null,null,"UNITS"]
[null,"I. Overall Project MW Information",null,null,null,null,null,null,null,null,null,null,null,null,"Calculated values for validation. Do not enter here."]
["I.1","Total Generating Facility gross capacity",null,null,"MVA",{"$f":"SUMPRODUCT(F23:N23,F25:N25)","v":108}]
["I.2","Total Generating Facility gross output",null,null,"MW",101.64,"The gross MW output to achieve requested MW at POI",null,null,null,null,null,null,null,{"$f":"SUMPRODUCT(F23:N23,F26:N26)","v":108}]
["I.3","Generating Facility Auxiliary Load",null,null,"MW",0]
["I.4","Project net capacity at Generating Facility",null,null,"MW",{"$f":"F5-F6","v":101.64}]
["I.5","Anticipated Losses between the Generating Facility and POI",null,null,"MW",1.64,"Include all transformer and line losses between the generating units and the POI at total Generating Facility gross output as calculated by the power flow model in .epc file"]
["I.6","Desired net output at POI",null,null,"MW",{"$f":"F7-F8","v":100},"must match MW value derived from power flow model in .epc file"]
["I.7","Standby Load when Generating Facility is off-line",null,null,"MW",0]
["I.8","For combined cycle plants, specify the plant net output capacity for an outage of the steam turbine or an outage of a single combustion turbine",null,null,"MW"]
[]
[]
[null,"II. Individual Generating Facility Characteristics"]
["II.1","Generating Facility Name ",null,null,null,"Gen Type1","Gen Type2","Gen Type3","Gen Type5","Gen Type6","Gen Type7","Gen Type8","Gen Type9","Gen TypeX"]
["II.2","Technology",null,null,null,"Doubly Fed Asynchronous",null,null,null,null,null,null,null,null,{"$f":"COUNTA(vbaGenType)","v":1}]
["II.3","Type",null,null,null,"25: wind turbine (offshore)",null,null,null,null,null,null,null,null,1]
["II.4","Manufacturer",null,null,null,"WindM",null,null,null,null,null,null,null,null,1]
["II.5","Model Name",null,null,null,"WTGxxx-3",null,null,null,null,null,null,null,null,1]
["II.6","Model Number",null,null,null,null,null,null,null,null,null,null,null,null,0,"not required"]
["II.7","Version (if applicable)",null,null,null,null,null,null,null,null,null,null,null,null,0,"not required"]
["II.8","Year Manufactured",null,null,null,null,null,null,null,null,null,null,null,null,0,"not required"]
["II.9","Number of Individual Generators or Inverters",null,null,null,45,null,null,null,null,null,null,null,null,1]
["II.10","Nominal Terminal Voltage",null,null,"kV",0.69,null,null,null,null,null,null,null,null,1]
["II.11","Individual generator rated MVA",null,null,"MVA",2.4,null,null,null,null,null,null,null,null,1]
["II.12","Individual generator rated MW",null,null,"MW",2.4,null,null,null,null,null,null,null,null,1]
["II.13","Individual generator power factor at rated MW",null,null,null,{"$f":"IF(ISBLANK(F25),\"\",F26/F25)","v":1},"","","","","","","","",1]
["II.14","Individual generator power factor regulation range at rated MW output",null,"Leading (-)",null,-0.9,null,null,null,null,null,null,null,null,1]
["II.15",null,null,"Lagging (+)",null,0.9,null,null,null,null,null,null,null,null,1]
["II.16","Generator Voltage Regulation Range (+/-)",null,null,"%",2.5000000000000001E-2,null,null,null,null,null,null,null,null,1]
["II.17","Phase",null,null,null,"Three Phase",null,null,null,null,null,null,null,null,1]
["II.18","Connection",null,null,null,"Ungrounded WYE",null,null,null,null,null,null,null,null,1]
["II.19","ACTION REQUIRED:",null,"Please submit generator reactive capability curves"]
[]
[]
[null,"III. Synchronous Generator Information"]
[null,"A. Generator",null,null,null,null,null,null,null,null,null,null,null,null,{"$f":"COUNTIF(vbaGenType,\"Synchronous\")","v":0},"calculation"]
["III.1","Rated Generator speed",null,null,"RPM",null,null,null,null,null,null,null,null,null,1]
["III.2","Generator Efficiency at Rated Load",null,null,"%",null,null,null,null,null,null,null,null,null,1]
["III.3","Moment of Inertia (including prime mover)",null,null,null,null,null,null,null,null,null,null,null,null,1]
["III.4","Inertia Time Constant (on machine base) H (Sec or MJ/MVA)",null,null,"MJ/MVA",null,null,null,null,null,null,null,null,null,1]
["III.5","SCR (Short-Circuit Ratio – the ratio of the field current required for rated open-circuit voltage to the field current required for rated short-circuit current",null,null,null,null,null,null,null,null,null,null,null,null,1]
["III.6",null,null,null,null,null,null,null,null,null,null,null,null,null,0,"skip"]
["III.7","Rated Hydrogen Cooling Pressure (Steam Units only)",null,null,"PSIG",null,null,null,null,null,null,null,null,null,1]
["III.8","Dynamic Model Name",null,null,null,null,null,null,null,null,null,null,null,null,1]
["III.9",null,"If other, specify the model name and reason to use non-WECC approved model",null,null,null,null,null,null,null,null,null,null,null,2,45,"Other (Explain Below)"]
[null,null,null,null,null,null,null,null,null,null,null,null,null,null,0,"skip"]
["III.10","ACTION REQUIRED:",null,"Please submit a plot of generator terminal voltage versus field current that shows the air gap line, the open-circuit saturation curve, and the saturation curve at full load and rated power factor",null,null,null,null,null,null,null,null,null,null,0,"skip"]
[null,null,null,null,null,null,null,null,null,null,null,null,null,null,0,"skip"]
[null,"B. Excitation for Each Generator",null,null,null,{"$f":"IF(ISBLANK(F37),\"\",F37)","v":""},"","","","","","","","",1,"this section is required if unit or plant > 75MVA "]
["III.11","Manufacture",null,null,null,null,null,null,null,null,null,null,null,null,1]
["III.12","For exciter type, please choose from 1 to 9 below or describe the specific excitation system.",null,null,null,null,null,null,null,null,null,null,null,null,1]
["III.13",null,"Other? - Please Specify:",null,null,null,null,null,null,null,null,null,null,null,2,52,"Other? (Specify):"]
["III.14","Excitation system response ratio",null,null,"ASA",null,null,null,null,null,null,null,null,null,1]
["III.15","Full load rated exciter output voltage",null,null,"V",null,null,null,null,null,null,null,null,null,1]
["III.16","Maximum exciter output voltage (ceiling voltage)",null,null,"V",null,null,null,null,null,null,null,null,null,1]
["III.17","Other comments regarding the excitation system?",null,null,null,null,null,null,null,null,null,null,null,null,0,"skip"]
[null,null,null,null,null,null,null,null,null,null,null,null,null,null,0,"skip"]
["III.18","ACTION REQUIRED:",null,"Please submit a copy of the block diagram of the excitation system from its instruction manual",null,null,null,null,null,null,null,null,null,null,0,"skip"]
[null,null,null,null,null,null,null,null,null,null,null,null,null,null,0,"skip"]
["III.19","C. Power System Stabilizer for Each Generator",null,null,null,{"$f":"IF(ISBLANK(F37),\"\",F37)","v":""},"","","","","","","","",1,"this section is required if unit  > 75MVA or unit > 30MVA and plant > 75 MVA"]
["III.20","Manufacturer",null,null,null,null,null,null,null,null,null,null,null,null,1]
["III.21","Is the PSS digital or analog:",null,null,null,null,null,null,null,null,null,null,null,null,1]
["III.22","Note the input signal source for the PSS",null,null,null,null,null,null,null,null,null,null,null,null,1]
["III.23",null,"Other? - Please Specify:",null,null,null,null,null,null,null,null,null,null,null,2,64,"Other (Explain Below)"]
["III.24","Other comments regarding the PSS?",null,null,null,null,null,null,null,null,null,null,null,null,0,"skip"]
[null,"ACTION REQUIRED:",null,"Please attach a copy of a block diagram of the PSS from the PSS Instruction Manual and the correspondence between dial settings and the time constants or PSS gain",null,null,null,null,null,null,null,null,null,null,0]
[null,null,null,null,null,null,null,null,null,null,null,null,null,null,0]
[null,"D. Turbine-Governor for Each Generator",null,null,null,{"$f":"IF(ISBLANK(F37),\"\",F37)","v":""},"","","","","","","","",1,"this section is required if unit or plant > 75MVA "]
["III.24","Turbine Type",null,null,null,null,null,null,null,null,null,null,null,null,1]
["III.25","Turbine manufacturer",null,null,null,null,null,null,null,null,null,null,null,null,1]
["III.26","Maximum turbine power output",null,null,"MW",null,null,null,null,null,null,null,null,null,1]
["III.27","Minimum turbine power output (while on line)",null,null,"MW",null,null,null,null,null,null,null,null,null,1]
["III.28","Governor Droop setting (speed regulation)",null,null,null,null,null,null,null,null,null,null,null,null,1]
["III.29","Is the governor mechanical-hydraulic or electro-hydraulic?\n(electro-hydraulic governors have an electronic speed sensor and transducer)",null,null,null,null,null,null,null,null,null,null,null,null,1]
[null,null,null,null,null,null,null,null,null,null,null,null,null,null,0,"skip"]
["III.30","Other comments regarding the turbine governor system:",null,null,null,null,null,null,null,null,null,null,null,null,0,"skip"]
[null,null,null,null,null,null,null,null,null,null,null,null,null,null,0,"skip"]
[]
[null,"E. Steam, gas or combined-cycle turbines:",null,null,null,null,null,null,null,null,null,null,null,null,{"$f":"O37-COUNTIF(F17:N17,\"5: hydro\")","v":0},"calculation"]
["III.31","If steam or combined-cycle, does the turbine system have a reheat process (i.e., both high and low pressure turbines)?",null,null,null,null,null,null,null,null,null,null,null,null,1]
[null,null,null,null,null,null,null,null,null,null,null,null,null,null,0,"skip"]
[null,"If steam with reheat process, or if combined-cycle, indicate the percent of full load power produced by each turbine:",null,null,null,null,null,null,null,null,null,null,null,null,0,"skip"]
[null,null,null,null,null,null,null,null,null,null,null,null,null,null,0,"skip"]
["III.32",null,"Low pressure turbine or gas turbine",null,"%",null,null,null,null,null,null,null,null,null,2,81,"Yes"]
["III.33",null,"High pressure turbine or steam turbine",null,"%",null,null,null,null,null,null,null,null,null,2,81,"Yes"]
[]
[null,"F. Hydro turbines:",null,null,null,null,null,null,null,null,null,null,null,null,{"$f":"COUNTIF(F17:N17,\"5: hydro\")","v":0},"calculation"]
["III.34","Turbine efficiency at rated load",null,null,"%",null,null,null,null,null,null,null,null,null,1]
["III.35","Length of penstock",null,null,"Feet",null,null,null,null,null,null,null,null,null,1]
["III.36","Average cross-sectional area of the penstock",null,null,"Feet2",null,null,null,null,null,null,null,null,null,1]
["III.37","Typical maximum head \n(vertical distance from the bottom of the penstock, at the gate, to the water level)",null,null,"Feet",null,null,null,null,null,null,null,null,null,1]
[null,null,null,null,null,null,null,null,null,null,null,null,null,null,1]
["III.38","Water supply",null,null,null,null,null,null,null,null,null,null,null,null,1]
["III.39","Water flow rate at the typical maximum head",null,null,"Ft3/Sec",null,null,null,null,null,null,null,null,null,1]
["III.40","Average energy rate",null,null,"kWh/\nAcre-Ft",null,null,null,null,null,null,null,null,null,1]
["III.41","Estimated yearly energy production",null,null,"kWh/\nYear",null,null,null,null,null,null,null,null,null,1]
[]
[null,"G. Short Circuit Data",null,null,null,{"$f":"IF(ISBLANK(F37),\"\",F37)","v":""},"","","","","","","","",{"$f":"O37","v":0},"calculation"]
["III.42","X\"1 – positive sequence subtransient reactance (saturated)",null,null,"p.u**",null,null,null,null,null,null,null,null,null,1]
["III.43","X\"1 – positive sequence subtransient reactance (unsaturated)",null,null,"p.u**",null,null,null,null,null,null,null,null,null,1]
["III.44","X2 – negative sequence reactance",null,null,"p.u**",null,null,null,null,null,null,null,null,null,1]
["III.45","X0 – zero sequence reactance",null,null,"p.u**",null,null,null,null,null,null,null,null,null,1]
["III.46","Generator Grounding",null,null,null,null,null,null,null,null,null,null,null,null,1]
["III.47",null,"If grounded through impedance, please enter:","R:","p.u**",null,null,null,null,null,null,null,null,null,2,104,"Grounded through Impedance"]
["III.48",null,null,"X:","p.u**",null,null,null,null,null,null,null,null,null,2,104,"Grounded through Impedance"]
["III.49","** On 100-MVA and nominal line voltage (kV) Base\n \n"]
[]
[null,"IV. Induction Machine Information (Individual Generator Data)"]
[null,"Induction Machine Information",null,null,null,"Gen Type1",null,null,null,null,null,null,null,null,{"$f":"COUNTIF(vbaGenType,\"Induction\")+COUNTIF(vbaGenType,\"Doubly Fed Asynchronous\")","v":1},"calculation"]
["IV.1","Moment of Inertia (including prime mover)",null,null,null,"N/A",null,null,null,null,null,null,null,null,1]
["IV.2","Do you wish reclose blocking?  ",null,null,null,"No",null,null,null,null,null,null,null,null,1]
[null,"Note:  Sufficient capacitance may be on the line now, or in the future, and the generator may self-excite unexpectedly.",null,null,null,null,null,null,null,null,null,null,null,null,0,"skip"]
[null,"Fill out the following for wind generators type 1, 2 or 3  (for Type 4 Wind Generators, skip to section V.)",null,null,null,null,null,null,null,null,null,null,null,null,0,"skip"]
["IV.3","Turbine Type ",null,null,null,"type 3",null,null,null,null,null,null,null,null,1]
["IV.4","Average Site Elevation",null,null,"Feet",305,null,null,null,null,null,null,null,null,1]
["IV.5","Field Volts",null,null,"Volt","N/A",null,null,null,null,null,null,null,null,1]
["IV.6","Field Amperes",null,null,"Amp","N/A",null,null,null,null,null,null,null,null,1]
["IV.7","Motoring Power",null,null,"MW",0.04,null,null,null,null,null,null,null,null,1]
["IV.8","Neutral Grounding Resistor (in applicable)",null,null,"ohm","N/A",null,null,null,null,null,null,null,null,1]
["IV.9","I22t of K (Heating Time Constant)",null,null,"sec","N/A",null,null,null,null,null,null,null,null,1]
["IV.10","Rotor Resistance",null,null,"ohm",1.91E-3,null,null,null,null,null,null,null,null,1]
["IV.11","Stator Resistance",null,null,"ohm",0.02,null,null,null,null,null,null,null,null,1]
["IV.12","Stator Reactance",null,null,"ohm",0.04,null,null,null,null,null,null,null,null,1]
["IV.13","Magnetized Reactance",null,null,"ohm",0.74,null,null,null,null,null,null,null,null,1]
["IV.14","Short Circuit Reactance",null,null,"ohm",0.28999999999999998,null,null,null,null,null,null,null,null,1]
["IV.15","Exciting Current",null,null,"amp","N/A",null,null,null,null,null,null,null,null,1]
["IV.16","Temperature Rise",null,null,null,"Class F Rise",null,null,null,null,null,null,null,null,1]
["IV.17","Frame Size",null,null,null,"N/A",null,null,null,null,null,null,null,null,1]
["IV.18","Design Letter",null,null,null,"N/A",null,null,null,null,null,null,null,null,1]
["IV.19","Reactive Power Required (No Load)",null,null,"kVARS","+/- 400 Var (with WindFREE); 0 (without WindFREE)",null,null,null,null,null,null,null,null,1]
["IV.20","Reactive Power Required (Full Load)",null,null,"kVARS","+/- 1162 kVar at 0.9pf",null,null,null,null,null,null,null,null,1]
["IV.21","Total Rotating Inertial I (Per Unit on 100 MVA Base)",null,null,"p.u",3,null,null,null,null,null,null,null,null,1]
[null,"Short Circuit Data",null,null,null,{"$f":"IF(ISBLANK(F72),\"\",F72)","v":""},"","","","","","","","",{"$f":"9-COUNTBLANK(F134:N134)","v":0},"skip"]
["IV.22","X\"1 – positive sequence subtransient reactance (saturated)",null,null,"p.u**",11.45,null,null,null,null,null,null,null,null,1]
["IV.23","X\"1 – positive sequence subtransient reactance (unsaturated)",null,null,"p.u**",11.846,null,null,null,null,null,null,null,null,1]
["IV.24","X2 – negative sequence reactance",null,null,"p.u**",11.45,null,null,null,null,null,null,null,null,1]
["IV.25","X0 – zero sequence reactance",null,null,"p.u**",99999,null,null,null,null,null,null,null,null,1]
["IV.26","Generator Grounding",null,null,null,"Ungrounded",null,null,null,null,null,null,null,null,1]
["IV.27",null,"If grounded through impedance, please enter:","R:","p.u**",null,null,null,null,null,null,null,null,null,2,139,"Grounded through Impedance"]
["IV.28",null,null,"X:","p.u**",null,null,null,null,null,null,null,null,null,2,139,"Grounded through Impedance"]
["IV.29","** On 100-MVA and nominal line voltage (kV) Base\n \n"]
[]
[null,"V. Inverter-Based Machine Information (Individual Inverter Data)"]
[null,"Inverter/Converter"]
["V.1","Will project be using a solar tracking system? (solar projects only)\nIf Yes, please provide a brief description of the tracking system to be used:",null,null,null,"N/A",null,null,null,null,null,null,null,null,1]
[null,null,null,null,null,null,null,null,null,null,null,null,null,null,{"$f":"O145","v":0}]
[null,"Inverter Name",null,null,null,"Gen Type1",null,null,null,null,null,null,null,null,{"$f":"COUNTIF(vbaGenType,\"DC With Inverter\")","v":0},"calculation"]
["V.2","List of adjustable set points for the protective equipment or software",null,null,null,"See Section 6 of Grid Interconnection document",null,null,null,null,null,null,null,null,1]
[null,null,null,null,null,null,null,null,null,null,null,null,null,null,{"$f":"O145","v":0}]
[null,null,null,null,null,null,null,null,null,null,null,null,null,null,{"$f":"O145","v":0}]
[null,null,null,null,null,null,null,null,null,null,null,null,null,null,{"$f":"O145","v":0}]
["V.3","Harmonics Characteristics",null,null,null,"See Section 13 of Grid Interconnection document",null,null,null,null,null,null,null,null,1]
[null,null,null,null,null,null,null,null,null,null,null,null,null,null,{"$f":"O145","v":0}]
[null,null,null,null,null,null,null,null,null,null,null,null,null,null,{"$f":"O145","v":0}]
[null,null,null,null,null,null,null,null,null,null,null,null,null,null,{"$f":"O145","v":0}]
["V.4","Start-up Requirement",null,null,null,"N/A",null,null,null,null,null,null,null,null,1]
[null,null,null,null,null,null,null,null,null,null,null,null,null,null,{"$f":"O145","v":0}]
[null,null,null,null,null,null,null,null,null,null,null,null,null,null,{"$f":"O145","v":0}]
[null,null,null,null,null,null,null,null,null,null,null,null,null,null,{"$f":"O145","v":0}]
[null,"Maximum design fault contribution current*:",null,null,null,null,null,null,null,null,null,null,null,null,{"$f":"O145","v":0}]
["V.5",null,"Initial symmetrical short-circuit current (Ik'')",null,"Amps","See section 14 of Grid Interconnection document",null,null,null,null,null,null,null,null,1]
["V.6",null,"First Peak of short circuit current (ip)",null,"Amps","See section 14 of Grid Interconnection document",null,null,null,null,null,null,null,null,1]
["V.7",null,"Steady-state short circuit current (Ik) ",null,"Amps","See section 14 of Grid Interconnection document",null,null,null,null,null,null,null,null,1]
["V.8",null,"Time to reach steady-state current",null,"ms","See section 14 of Grid Interconnection document",null,null,null,null,null,null,null,null,1]
[null,"* Refer to IEC 60909 for definitions of the quantities above.",null,null,null,null,null,null,null,null,null,null,null,null,0]
["V.9","Does the inverter produce negative sequence fault current",null,null,null,"No",null,null,null,null,null,null,null,null,1]
[null,null,null,null,null,null,null,null,null,null,null,null,null,null,0]
["V.10","Will the inverter go into momentary cessation (i.e. connected to the grid but not injecting any current into the grid) during system fault conditions? ",null,null,null,null,null,null,null,null,null,null,null,null,1]
[null,null,null,null,null,null,null,null,null,null,null,null,null,null,0]
[null,null,"If yes, fill out the following:",null,null,"Warning: momentary cessation is not allowed for newly interconnecting generators.",null,null,null,null,null,null,null,null,0]
["V.11",null,"Describe all operating conditions wherein the inverter will enter into momentary cessation, such as voltage thresholds, etc.",null,null,null,null,null,null,null,null,null,null,null,2,169,"Yes; explain below"]
[null,null,null,null,null,null,null,null,null,null,null,null,null,null,0]
[null,null,null,null,null,null,null,null,null,null,null,null,null,null,0]
[null,null,null,null,null,null,null,null,null,null,null,null,null,null,0]
["V.12",null,"Describe the inverter and plant control during momentary cessation. Do the controls freeze or reset? Is the inverter capable of injecting reactive current during momentary cessation? ",null,null,null,null,null,null,null,null,null,null,null,2,169,"Yes; explain below"]
[null,null,null,null,null,null,null,null,null,null,null,null,null,null,0]
[null,null,null,null,null,null,null,null,null,null,null,null,null,null,0]
[null,null,null,null,null,null,null,null,null,null,null,null,null,null,0]
["V.13",null,"Provide the time duration the inverter remains in momentary cessation after the operating conditions are back to normal range before inverters starting to return to the normal current injecting.",null,null,null,null,null,null,null,null,null,null,null,2,169,"Yes; explain below"]
[null,null,null,null,null,null,null,null,null,null,null,null,null,null,0]
[null,null,null,null,null,null,null,null,null,null,null,null,null,null,0]
[null,null,null,null,null,null,null,null,null,null,null,null,null,null,0]
["V.14",null,"Provide the total time duration the inverter returns to pre-disturbance current injecting after it gets out momentary cessation. Describe any ramping limitation during this period and control priority between active and reactive currents.",null,null,null,null,null,null,null,null,null,null,null,2,169,"Yes; explain below"]
[null,null,null,null,null,null,null,null,null,null,null,null,null,null,0]
[null,null,null,null,null,null,null,null,null,null,null,null,null,null,0]
[null,null,null,null,null,null,null,null,null,null,null,null,null,null,0]
[null,null,"If no, fill out the following:",null,null,null,null,null,null,null,null,null,null,null,0]
["V.15",null,"Describe inverter control during the system fault conditions. Provide information regarding control freeze, priority between active and reactive currents, master controller vs local control, etc.",null,null,"N/A",null,null,null,null,null,null,null,null,2,169,"No; explain below"]
[null,null,null,null,null,null,null,null,null,null,null,null,null,null,0]
[null,null,null,null,null,null,null,null,null,null,null,null,null,null,0]
[null,null,null,null,null,null,null,null,null,null,null,null,null,null,0]
["V.16",null,"Does the inverter have programmable ramp rates for morning start up and evening shut down? What is the range of the ramp rates, in % per minute?",null,null,"N/A",null,null,null,null,null,null,null,null,2,169,"No; explain below"]
[null,null,null,null,null,null,null,null,null,null,null,null,null,null,0]
[null,null,null,null,null,null,null,null,null,null,null,null,null,null,0]
[null,null,null,null,null,null,null,null,null,null,null,null,null,null,0]
["V.17","Does the inverter lock itself out after certain numbers of tripping during a given period? If yes, please describe the number of trips to lock-out and how the inverter restores operation.",null,null,null,"N/A",null,null,null,null,null,null,null,null,2,169,"No; explain below"]
[]
[]
[]
[null,"ACTION REQUIRED:",null,"Please submit a copy of the manufacturer's specification sheet and short circuit test report"]
[]
[null,"VI. Energy Storage Information (Individual inverter or unit data)",null,null,null,null,null,null,null,null,null,null,null,null,{"$f":"COUNTIF(F17:N17,\"*energy storage*\")","v":0},"calculated"]
["VI.1","Select the source of charging ( transmission gird, distribution grid, on-site generator, etc.)",null,null,null,null,null,null,null,null,null,null,null,null,1]
["VI.2","If selected \"other\" above, explain",null,null,null,null,null,null,null,null,null,null,null,null,2,204,"other (please explain)"]
["VI.3","Select the operation of charging",null,null,null,null,null,null,null,null,null,null,null,null,{"$f":"IF(COUNTA(F206)>0,O203,0)","v":0}]
[null,"Storage Device Specification Data (Name)",null,null,null,null,null,null,null,null,null,null,null,null,{"$f":"9-COUNTBLANK(F207:N207)","v":0}]
["VI.4","Total Storage Capability",null,null,"MWh",null,null,null,null,null,null,null,null,null,1]
["VI.5","Charge/Discharge Cycle Efficiency",null,null,"%",null,null,null,null,null,null,null,null,null,1]
["VI.6","Rated Storage Discharging Power",null,null,"MW",null,null,null,null,null,null,null,null,null,1]
["VI.7","Discharge Duration under Rated Power",null,null,"Hours",null,null,null,null,null,null,null,null,null,1]
["VI.8","Maximum Storage Discharging Power",null,null,"MW",null,null,null,null,null,null,null,null,null,1]
["VI.9","Discharge Duration under Maximum Power",null,null,"Hours",null,null,null,null,null,null,null,null,null,1]
["VI.10","Rated Storage Charging Power",null,null,"MW",null,null,null,null,null,null,null,null,null,1]
["VI.11","Charge Duration under Rated Power",null,null,"Hours",null,null,null,null,null,null,null,null,null,1]
["VI.12","Maximum Storage Charging Power",null,null,"MW",null,null,null,null,null,null,null,null,null,1]
["VI.13","Charge Duration under Maximum Power",null,null,"Hours",null,null,null,null,null,null,null,null,null,1]
["VI.14","Requested Storage Charging Power (gross charging power to be studied at the terminal)",null,null,"MW",null,null,null,null,null,null,null,null,null,1]
[null,"Primary frequency response operating range",null,null,null,null,null,null,null,null,null,null,null,null,0]
["VI.15",null,"Minimum State of Charge",null,"%",null,null,null,null,null,null,null,null,null,1]
["VI.16",null,"Maximum State of Charge",null,"%",null,null,null,null,null,null,null,null,null,1]
[]
[null,"VII. Voltage / Power Factor Control & Frequency Control"]
[null,"Reactive Capability Requirements"]
[null,null,"Synchronous Generators",null,null,"The Generating Unit will maintain a composite power delivery at continuous rated power output at the terminals of the Electric Generating Unit at a power factor within the range of 0.95 leading to 0.90 lagging. "]
[]
[]
[null,null,"Asynchronous Generators",null,null,"The Generating Unit will maintain a composite power delivery at continuous rated power output at the high-side of the generator substation at a power factor within the range of 0.95 leading to 0.95 lagging. This power factor range standard shall be dynamic and can be met using, for example, power electronics designed to supply this level of reactive capability (taking into account any limitations due to voltage level, real power output, etc.) or fixed and switched capacitors or reactors, or a combination of the two. Refer to FERC Order No. 827 for more detail. "]
[]
[]
[]
[]
[null,"Devices to Provide Required Reactive Capability"]
["VII.1","1) Reactive power capability from generators",null,"Qmax","MVARS",36,null,"For your reference, Qmax and Qmin to the right are calculate from the gross MVA and MW. You may enter any Qmax and Qmin within the calculated range.",null,null,null,{"$f":"SQRT(F4^2-F5^2)","v":36.514523138061115},null,null,{"$f":"ROUND(SQRT(F4^2-F5^2),2)","v":36.51}]
["VII.2",null,null,"Qmin","MVARS",-36,null,null,null,null,null,{"$f":"-L234","v":-36.514523138061115},null,null,{"$f":"-O234","v":-36.51}]
["VII.3","Expected ambient temperature for the reactive capability above",null,null,"⁰C",null,null,null,null,null,null,null,null,null,1]
[null,"2) Additional reactive devices",null,null,null,"Var Device 1",null,"Var Device 2",null,"Var Device 3",null,"Var Device 4"]
["VII.4",null,null,"Type of Device",null,null,null,null,null,null,null,null,null,null,{"$f":"COUNTA(vbaVar)","v":0},{"$f":"COUNTIF(vbaVar,\"Fixed Capacitor\")","v":0},{"$f":"COUNTIF(vbaVar,\"SVD\")","v":0}]
["VII.5",null,null,"If other, please select static or dynamic and describe",null,null,null,null,null,null,null,null,null,null,2,238,"other (explain below)"]
["VII.6",null,null,"Qmax","MVARS",null,null,null,null,null,null,null,null,null,1]
["VII.7",null,null,"Qmin","MVARS",null,null,null,null,null,null,null,null,null,1]
["VII.8",null,null,"Location",null,null,null,null,null,null,null,null,null,null,1]
["VII.9","Total reactive capability",null,"Qmax",null,{"$f":"F234+SUM(F240:M240)","v":36}]
["VII.10",null,null,"Qmin",null,{"$f":"F235+SUM(F241:M241)","v":-36}]
["VII.11","Total dynamic reactive capability",null,"Qmax",null,{"$f":"F243-SUMIF(vbaVar,\"Fixed Capacitor\",F240:M240)-SUMIF(vbaVar,\"SVD\",F240:M240)-SUMIFS(F240:M240,vbaVar,\"Other (Explain Below)\",F239:M239,\"static\")","v":36}]
["VII.12",null,null,"Qmin",null,{"$f":"F244-SUMIF(vbaVar,\"Fixed Capacitor\",F241:M241)-SUMIF(F239:M239,\"static\",F241:M241)","v":-36}]
["VII.13","Estimated dynamic reactive capability requirement if asynchronous generators",null,"Qmax",null,{"$f":"SQRT((F5/0.95)^2-F5^2)","v":33.407452450379687},"The calculated values are to help the IC to complete the IR form. The reactive capability requirement accounting for var losses will be determined in the interconnection studies."]
["VII.14",null,null,"Qmin",null,{"$f":"-F247","v":-33.407452450379687}]
["VII.15","Provide a general description of  the voltage/power factor control that will be installed, including coordination among inverters, reactive devices and transformer tap changers. ",null,null,null,null,null,null,null,null,null,null,null,null,1]
[]
[]
[null,"Primary Frequency Response Requirements"]
[null,"Requirement",null,null,null,"Interconnection Customer is required to install a governor or equivalent controls with the capability of operating: (1) with a maximum 5 percent droop and +/-0.036Hz deadband; or (2) in accordance with the relevant droop, deadband, and timely and sustained response setteings form an approved NERC Reliability Standard providng for equivalent or more stringent paramenters.Refer to FERC Order 842 for more detail."]
[]
[]
[null,"Generator",null,null,null,"Gen Type1",null,null,null,null,null,null,null,null,{"$f":"O16","v":1},"calcualted"]
["VII.16","Upward frequency response droop (increase output for low frequency)",null,null,"%",0.05,null,null,null,null,null,null,null,null,1]
["VII.17","Downward frequency response droop (reduce output for high frequency)",null,null,"%",0.05,null,null,null,null,null,null,null,null,1]
["VII.18","Frequency response deadband",null,"+/-","Hz",3.5999999999999997E-2,null,null,null,null,null,null,null,null,1]
[]
[null,"VIII. Transformer Data (GSU and pad-mount transformers)"]
[null,"For each type of transformer, fill out the data form provided in the following table(s). Supply copy of nameplate and manufacture’s test report when available.",null,null,null,null,null,null,null,null,null,null,null,null,{"$f":"IF(ISBLANK(F268),0,1)","v":1},{"$f":"IF(ISBLANK(I268),0,1)","v":1},{"$f":"IF(ISBLANK(L268),0,1)","v":0}]
[null,"Transformer Name",null,null,null,"GSU",null,null,"PADMOUNTED",null,null,"XFRM3",null,null,{"$f":"COUNTA(F268:H268)","v":3},{"$f":"COUNTA(I268:K268)","v":2},{"$f":"COUNTA(L268:N268)","v":0}]
["VIII.1","No. of Transformers",null,null,null,1,null,null,45,null,null,null,null,null,1]
["VIII.2","Phase",null,null,null,"Three Phase",null,null,"Three Phase",null,null,null,null,null,1]
[null,null,null,null,null,"H Winding","X Winding","Y Winding","H Winding","X Winding","Y Winding","H Winding","X Winding","Y Winding",0]
[null,"RATING",null,null,null,null,null,null,null,null,null,null,null,null,0]
["VIII.3","Rated MVA (Please enter the rating to model the transformer in the interconnection studies)",null,null,"MVA",115,115,25,2.56,2.56,null,null,null,null,1]
["VIII.4","Connection (Delta, Wye, Gnd.)",null,null,null,"Wye Grounded","Wye Grounded","Delta","Delta","Wye Grounded",null,null,null,null,1]
["VIII.5","Cooling Type (OA,OA/FA, etc.)",null,null,null,"ONAF2","ONAF2","ONAF2","ONAF","ONAF",null,null,null,null,1]
["VIII.6","Temperature Rise Rating",null,null,"⁰C",65,65,65,55,55,null,null,null,null,1]
["VIII.7","Rated Voltage",null,null,"kV",230,34.5,13.8,34.5,0.69,null,null,null,null,1]
["VIII.8","BIL",null,null,"kV",1650,200,110,150,30,null,null,null,null,1]
["VIII.9","Available Taps (% of rating)",null,null,null,"+/- 2X2.5%","NONE","NONE","+/- 2X2.5%","NONE",null,null,null,null,0]
["VIII.10","Load Tap Changer? (Yes or No)",null,null,null,"No","No","No","No","No",null,null,null,null,1]
["VIII.11","Tap Settings",null,null,"% of rating","+/- 2.5%; +/-5%","NONE","NONE","+/- 2.5%; +/-5%","NONE",null,null,null,null,2,275,"Yes"]
[null,null,null,null,null,null,null,null,null,null,null,null,null,null,0]
[null,"IMPEDANCE",null,null,null,"H-X","H-Y","X-Y","H-X","H-Y","X-Y","H-X","H-Y","X-Y",0]
["VIII.12","Percent ( impedance Z)",null,null,"%",8,7.5,13.5,5.75,null,null,null,null,null,1]
["VIII.13","MVA Base",null,null,"MVA",69,69,69,2.56,null,null,null,null,null,1]
["VIII.14","Tested Taps",null,null,null,"TBD","N/A","N/A","TBD",null,null,null,null,null,0]
[null,null,null,null,null,null,null,null,null,null,null,null,null,null,0]
[null,"WINDING RESISTANCE",null,null,null,"H-X","H-Y","X-Y","H-X","H-Y","X-Y","H-X","H-Y","X-Y",0]
["VIII.15","X/R Ratio",null,null,null,40,35,80,7.5,null,null,null,null,null,1]
[]
[null,"Current Transformer Ratios"]
["VIII.16",null,"H",null,null,"600",null,null,"1200"]
["VIII.17",null,"X",null,null,"1200",null,null,"1200"]
["VIII.18",null,"Y",null,null,"1200"]
["VIII.19",null,"N"]
[null,"Percent Exciting Current at:"]
["VIII.20",null,"100% voltage",null,null,"<0.2%",null,null,"<0.2%",null,null,null,null,null,1]
["VIII.21",null,"110% voltage",null,null,"<0.5%",null,null,"<0.5%",null,null,null,null,null,1]
[]
[null,"VIII. Transformer Data (continued, pad-mount transformers only)"]
[null,"For each type of transformer, fill out the data form provided in the following table(s). Supply copy of nameplate and manufacture’s test report when available.",null,null,null,null,null,null,null,null,null,null,null,null,{"$f":"IF(ISBLANK(F302),0,1)","v":0},{"$f":"IF(ISBLANK(I302),0,1)","v":0},{"$f":"IF(ISBLANK(L302),0,1)","v":0}]
[null,"Transformer Name",null,null,null,"XFMR4",null,null,"XFMR5",null,null,"XFMR6",null,null,{"$f":"COUNTA(F302:H302)","v":0},{"$f":"COUNTA(I302:K302)","v":0},{"$f":"COUNTA(L302:N302)","v":0}]
["VIII.1","No. of Transformer",null,null,null,null,null,null,null,null,null,null,null,null,1]
["VIII.2","Phase",null,null,null,null,null,null,null,null,null,null,null,null,1]
[null,null,null,null,null,"H Winding","X Winding","Y Winding","H Winding","X Winding","Y Winding","H Winding","X Winding","Y Winding",0]
[null,"RATING",null,null,null,null,null,null,null,null,null,null,null,null,0]
["VIII.3","Rated MVA",null,null,"MVA",null,null,null,null,null,null,null,null,null,1]
["VIII.4","Connection (Delta, Wye, Gnd.)",null,null,null,null,null,null,null,null,null,null,null,null,1]
["VIII.5","Cooling Type (OA,OA/FA, etc.)",null,null,null,null,null,null,null,null,null,null,null,null,1]
["VIII.6","Temperature Rise Rating",null,null,"⁰C",null,null,null,null,null,null,null,null,null,1]
["VIII.7","Rated Voltage",null,null,"kV",null,null,null,null,null,null,null,null,null,1]
["VIII.8","BIL",null,null,null,null,null,null,null,null,null,null,null,null,1]
["VIII.9","Available Taps (% of rating)",null,null,null,null,null,null,null,null,null,null,null,null,0]
["VIII.10","Load Tap Changer? (Y or N)",null,null,null,null,null,null,null,null,null,null,null,null,1]
["VIII.11","Tap Settings",null,null,null,null,null,null,null,null,null,null,null,null,2,309,"Yes"]
[null,null,null,null,null,null,null,null,null,null,null,null,null,null,0]
[null,"IMPEDANCE",null,null,null,"H-X","H-Y","X-Y","H-X","H-Y","X-Y","H-X","H-Y","X-Y",0]
["VIII.12","Percent",null,null,"%",null,null,null,null,null,null,null,null,null,1]
["VIII.13","MVA Base",null,null,"MVA",null,null,null,null,null,null,null,null,null,1]
["VIII.14","Tested Taps",null,null,null,null,null,null,null,null,null,null,null,null,0]
[null,null,null,null,null,null,null,null,null,null,null,null,null,null,0]
[null,"WINDING RESISTANCE",null,null,null,"H-X","H-Y","X-Y","H-X","H-Y","X-Y","H-X","H-Y","X-Y",0]
["VIII.15","X/R Ratio",null,null,null,null,null,null,null,null,null,null,null,null,1]
[]
[null,"Current Transformer Ratios"]
["VIII.16",null,"H"]
["VIII.17",null,"X"]
["VIII.18",null,"Y"]
["VIII.19",null,"N"]
[null,"Percent Exciting Current at:"]
["VIII.20",null,"100% voltage",null,null,null,null,null,null,null,null,null,null,null,1]
["VIII.21",null,"110%  voltage",null,null,null,null,null,null,null,null,null,null,null,1]
[]
[null,"IX. Interconnection Facilities Line Data"]
[null,"There is no need to provide data for new lines that are to be planned by the Participating TO. However, for transmission lines that are to be planned by the generation developer, please provide the following information:"]
[]
["IX.1","Is the project sharing a gen-tie with other projects?",null,null,null,"No",null,null,null,null,null,null,null,null,1]
["IX.2",null,"If yes, please specify the other project(s) and location on the gen-tie the project is Interconnecting to:",null,null,null,null,null,null,null,null,null,null,null,2,332,"Yes (See Below)"]
[null,null,null,null,null,null,null,null,null,null,null,null,null,null,0]
[null,null,null,null,null,null,null,null,null,null,null,null,null,null,0]
[null,null,null,null,null,null,null,null,null,null,null,null,null,null,0]
["IX.3","Is the project interconnection to an existing transmission line?",null,null,null,"No",null,null,null,null,null,null,null,null,1]
["IX.4",null,"If yes, please specify the specific Point of Interconnection (POI) location on such transmission line, including the pole number(s).",null,null,null,null,null,null,null,null,null,null,null,2,337,"Yes (See Below)"]
[null,null,null,null,null,null,null,null,null,null,null,null,null,null,0]
[null,null,null,null,null,null,null,null,null,null,null,null,null,null,0]
[null,null,null,null,null,null,null,null,null,null,null,null,null,null,0]
[null,null,null,null,null,"Line1","Line 2","Line 3","Line 4",null,null,null,null,null,0]
["IX.5","Nominal Voltage",null,null,"kV",230,null,null,null,null,null,null,null,null,{"$f":"COUNTA(F343:I343)","v":1},"calculated"]
["IX.6","Line Length",null,null,"Miles",8,null,null,null,null,null,null,null,null,1]
["IX.7a","Line Termination Point (From)",null,null,"From:","WindPlant",null,null,null,null,null,null,null,null,1]
["IX.7b","Line Termination Point (To)",null,null,"To:","Highwind",null,null,null,null,null,null,null,null,1]
[null,"If this is a new line planned by the IC and the line length is not negligible, completed the following:"]
["IX.8","Conductor Type",null,null,null,"ACSR"]
["IX.9","Conductor Size",null,null,null,954]
[null,"If Bundled:"]
["IX.10",null,"Number per Phase"]
["IX.11",null,"Bundle Spacing",null,"Inches"]
["IX.12","Phase Configuration",null,null,null,"Triangular"]
[null,"Phase Spacing:"]
["IX.13",null,"A-B",null,"Feet",18]
["IX.14",null,"B-C",null,"Feet",24.42]
["IX.15",null,"C-A",null,"Feet",16.5]
["IX.16","Distance of lowest conductor to Ground at full load and 40 C",null,null,"Feet",38]
[null,"Ground Wire"]
["IX.17",null,"Type",null,null,"Galvanized Steel"]
["IX.18",null,"Size",null,null,"3/8\""]
["IX.19",null,"Distance to Ground",null,"Feet",73]
[null,"Summer line ratings in amperes"]
["IX.20",null,"Normal",null,"Amps",1010]
["IX.21",null,"Emergency",null,"Amps",1212]
[null,"Summer line ratings in MVA (Calculation)"]
["IX.22",null,"Normal",null,"MVA",{"$f":"F343*F364*SQRT(3)/1000","v":402.35540259825018},{"$f":"G343*G364*SQRT(3)/1000","v":0},{"$f":"H343*H364*SQRT(3)/1000","v":0},{"$f":"I343*I364*SQRT(3)/1000","v":0}]
["IX.23",null,"Emergency",null,"MVA",{"$f":"F343*F365*SQRT(3)/1000","v":482.82648311790018},{"$f":"G343*G365*SQRT(3)/1000","v":0},{"$f":"H343*H365*SQRT(3)/1000","v":0},{"$f":"I343*I365*SQRT(3)/1000","v":0}]
[null,"Winter line ratings in amperes"]
["IX.24",null,"Normal",null,"Amps",1010]
["IX.25",null,"Emergency",null,"Amps",1212]
[null,"Winter line ratings in MVA (Calculation)"]
["IX.26",null,"Normal",null,"MVA",{"$f":"F343*F370*SQRT(3)/1000","v":402.35540259825018},{"$f":"G343*G370*SQRT(3)/1000","v":0},{"$f":"H343*H370*SQRT(3)/1000","v":0},{"$f":"I343*I370*SQRT(3)/1000","v":0}]
["IX.27",null,"Emergency",null,"MVA",{"$f":"F343*F371*SQRT(3)/1000","v":482.82648311790018},{"$f":"G343*G371*SQRT(3)/1000","v":0},{"$f":"H343*H371*SQRT(3)/1000","v":0},{"$f":"I343*I371*SQRT(3)/1000","v":0}]
["IX.28","Positive Sequence Resistance (R) (for entire line length)",null,null,"p.u.**",1.4897999999999999E-3]
["IX.29","Positive Sequence Reactance (X) (for entire line length)",null,null,"p.u.**",1.1318999999999999E-2]
["IX.30","Zero Sequence Resistance (R0) (for entire line length)",null,null,"p.u.**",7.2239000000000001E-3]
["IX.31","Zero Reactance (X0) (for entire line length)",null,null,"p.u.**",3.7620300000000002E-2]
["IX.32","Line Charging (B)",null,null,"p.u.**",2.4258200000000001E-2]
[null,"** On 100-MVA and nominal line voltage (kV) Base "]
[null,"ACTION REQUIRED:",null,"Please submit a Tower Configuration Diagram"]
[]
[null,"X. For generators with a collector system, provide Collector System Equivalence Data "]
[null,"Line",null,null,null,"Collector 1","Collector 2","Collector 3","Collector 4","Collector 5"]
[null,"Provide values for each equivalence collector circuit at all voltage levels."]
["X.1","Nominal Voltage",null,null,"kV",34.5,null,null,null,null,null,null,null,null,{"$f":"COUNTA(F386:J386)","v":1},"calculated"]
[null,"Summer line ratings in Amperes",null,null,null,null,null,null,null,null,null,null,null,null,0]
["X.2",null,"Normal",null,"Amps",1800,null,null,null,null,null,null,null,null,1]
["X.3",null,"Emergency",null,"Amps",1800,null,null,null,null,null,null,null,null,1]
[null,"Summer line ratings in MVA (Calculation)",null,null,null,null,null,null,null,null,null,null,null,null,0]
["X.4",null,"Normal",null,"MVA",{"$f":"F386*F388*SQRT(3)/1000","v":107.56035515002728},{"$f":"G386*G388*SQRT(3)/1000","v":0},0,0,0,null,null,null,null,0]
["X.5",null,"Emergency",null,"MVA",{"$f":"F386*F389*SQRT(3)/1000","v":107.56035515002728},{"$f":"G386*G389*SQRT(3)/1000","v":0},0,0,0,null,null,null,null,0]
[null,"Winter line ratings in Amperes",null,null,null,null,null,null,null,null,null,null,null,null,0]
["X.6",null,"Normal",null,"Amps",1800,null,null,null,null,null,null,null,null,1]
["X.7",null,"Emergency",null,"Amps",1800,null,null,null,null,null,null,null,null,1]
[null,"Winter line ratings in MVA (Calculation)",null,null,null,null,null,null,null,null,null,null,null,null,0]
["X.8",null,"Normal",null,"MVA",{"$f":"F386*F394*SQRT(3)/1000","v":107.56035515002728},{"$f":"G386*G394*SQRT(3)/1000","v":0},{"$f":"H386*H394*SQRT(3)/1000","v":0},0,0,null,null,null,null,0]
["X.9",null,"Emergency",null,"MVA",{"$f":"F386*F395*SQRT(3)/1000","v":107.56035515002728},{"$f":"G386*G395*SQRT(3)/1000","v":0},{"$f":"H386*H395*SQRT(3)/1000","v":0},0,0,null,null,null,null,0]
["X.10","Positive Sequence Resistance (R1) (for entire line length of each collector circuit)",null,null,"p.u.**",5.4299999999999999E-3,null,null,null,null,null,null,null,null,1]
["X.11","Positive Sequence Reactance (X1) (for entire line length of each collector circuit)",null,null,"p.u.**",8.4840000000000002E-3,null,null,null,null,null,null,null,null,1]
["X.12","Zero Sequence Resistance (R0) (for entire line length of each collector circuit)",null,null,"p.u.**",2.7708E-2,null,null,null,null,null,null,null,null,1]
["X.13","Zero Reactance (X0) (for entire line length of each collector circuit)",null,null,"p.u.**",8.3040000000000006E-3,null,null,null,null,null,null,null,null,1]
["X.14","Line Charging (B) (for entire line length of each collector circuit)",null,null,"p.u.**",3.3939999999999999E-3,null,null,null,null,null,null,null,null,1]
[null,"** On 100-MVA and nominal line voltage (kV) Base\n \n"]
[]
[null,"XI. Load Flow and Dynamic Models "]
[null,"(to be provided via upload for electronic submission, or on DVD, CD, or USB Flash Drive):"]
[]
[null,"Provide load flow model for the generating plant and its interconnection facilities in GE PSLF *.epc format, including new buses, generators, transformers, interconnection facilities.  One copy of this data should be provided via upload for electronic submission, or on DVD, CD, or USB flash drive media. An equivalent model is required for the plant with generation collector systems.  This data should reflect the technical data provided in this Attachment A.",null,null,null,null,null,null,null,"Please use \"Power Flow Model\" and \"Dynamic Model\" to create the .epc and .dyd files."]
[]
[]
[]
[]
[null,"For each generator, governor, exciter and power system stabilizer, select the appropriate dynamic model from the General Electric PSLF Program Manual and provide the required input data. For inverter based generating facilities, select the appropriate generator and control models from the General Electric PSLF Program Manual and provide the required input data.  For each generator that will activate voltage/frequency relaying, provide appropriate dynamic models for low/high voltage/frequency ride-through that comply with NERC standard PRC-024-2. The latest WECC approved model must be used.\nProvide a completed *.dyd file that contains the information specified in this section.  One copy of this data should be provided via upload for electronic submission, or on DVD, CD, or USB flash drive media.\n"]
[]
[]
[]
[]
[]
[]
[null,"If you require assistance in developing the models, we suggest you contact General Electric. Accurate models are important to obtain accurate study results. Costs associated with any changes in facility requirements that are due to differences between model data provided by the generation developer and the actual generator test data, may be the responsibility of the generation developer."]
[]
[]
[]
[null,"For information regarding GE PSLF and its model library, please send an email to pslf-caiso@ge.com"]

{"sheet":"II. Technical Validation","index":2,"n_rows":7,"n_cols":7,"rows_kept":7,"cut":false,"hidden":false,"merged":[[5,0,5,5],[1,0,4,2],[0,0,0,5]]}
[{"$f":"Instructions!C10","v":"Sample Wind IR"}]
[]
[]
[]
[]
["Data Error/Warning"]
["Type","Data Section","Data Item","Error/Warning Description","Entered Value","Suggested Changes","IC Explanation Regarding the Warning"]

{"sheet":"III. Power Flow Model","index":3,"n_rows":220,"n_cols":71,"rows_kept":220,"cut":false,"hidden":false,"merged":[[219,5,221,7],[75,0,75,6],[97,0,97,9],[219,0,221,4],[2,4,30,7],[146,0,146,10],[167,0,167,3],[56,0,56,1],[65,0,65,16],[58,7,63,10],[37,4,37,8],[46,4,46,8],[56,4,56,5],[178,0,178,5],[193,0,193,5],[0,0,0,12],[1,0,1,12],[32,0,32,2],[48,0,48,2],[39,0,39,2],[48,4,48,6],[2,0,2,3],[39,4,39,9],[32,4,32,8]]}
[{"$f":"Instructions!C10","v":"Sample Wind IR"}]
["Project Connectivity",null,null,null,null,null,null,null,null,null,null,null,null,null,null,null,null,null,"Hidden calculations",null,null,null,null,null,null,null,null,null,null,null,null,null,null,null,null,null,null,null,null,null,null,null,null,null,null,null,null,null,null,null,null,null,null,null,null,null,null,null,null,null,null,null,null,null,null,null,null,null,null,1.05,0.95]
["Buses",null,null,null,"\nSample One-Line Diagram"]
[null,"Bus Name","Bus Voltage","Bus No"]
["Point of Interconnection",null,{"$f":"'I. Project Configuration'!F343","v":230},1]
[]
["High Side of GSU",null,{"$f":"C5","v":230},2]
[]
["Low Side of GSU 1",null,{"$f":"'I. Project Configuration'!G272","v":34.5},3]
["Low Side of GSU 2",null,null,4]
["Low Side of GSU 3",null,null,5]
[]
["Feeder 1",null,{"$f":"IF(ISBLANK('I. Project Configuration'!F$386),\"\",'I. Project Configuration'!F$386)","v":34.5},6]
["Feeder 2",null,{"$f":"IF(ISBLANK('I. Project Configuration'!G$386),\"\",'I. Project Configuration'!G$386)","v":""},7]
["Feeder 3",null,{"$f":"IF(ISBLANK('I. Project Configuration'!H$386),\"\",'I. Project Configuration'!H$386)","v":""},8]
["Feeder 4",null,{"$f":"IF(ISBLANK('I. Project Configuration'!I$386),\"\",'I. Project Configuration'!I$386)","v":""},9]
["Feeder 5",null,{"$f":"IF(ISBLANK('I. Project Configuration'!J$386),\"\",'I. Project Configuration'!J$386)","v":""},10]
[]
["EQ Gen 1",null,null,15]
["EQ Gen 2",null,null,16]
["EQ Gen 3",null,null,17]
["EQ Gen 4",null,null,18]
["EQ Gen 5",null,null,19]
[]
["For three winding transformers"]
["Tertiary Winding Bus 1",null,null,31]
["Tertiary Winding Bus 2",null,null,32]
["Tertiary Winding Bus 3",null,null,33]
["Internal Bus 1",null,null,41]
["Internal Bus 2",null,null,42]
["Internal Bus 3",null,null,43]
[]
["Gen-Tie Lines",null,null,null,"Main GSU"]
[null,"From Bus Name","To Bus Name",null,null,"From Bus Name","To Bus Name","Tertiary Bus Name (if 3-winding)","Internal Bus Name (if 3-winding)"]
[]
[]
[]
[null,null,null,null,"If LTC, please specify the From Bus being the winding with load tap changer."]
[]
["Equivalent Collector Lines",null,null,null,"Equivalent Pad Mount Transformer"]
[null,"From Bus Name","To Bus Name",null,null,"No. of Transformers","From Bus Name","To Bus Name","Tertiary Bus Name (if 3-winding)","Internal Bus Name (if 3-winding)"]
[null,null,null,null,null,null,null,null,null,null,null,null,null,null,null,null,null,null,{"$f":"SUMIF(epcPadMt,E42,$F$42:$F$46)","v":0},{"$f":"_xlfn.IFNA(HLOOKUP(E42,'I. Project Configuration'!$F$263:$N$264,2,FALSE),0)+_xlfn.IFNA(HLOOKUP(E42,'I. Project Configuration'!$F$297:$N$298,2,FALSE),0)","v":0}]
[null,null,null,null,null,null,null,null,null,null,null,null,null,null,null,null,null,null,{"$f":"SUMIF(epcPadMt,E43,$F$42:$F$46)","v":0},{"$f":"_xlfn.IFNA(HLOOKUP(E43,'I. Project Configuration'!$F$263:$N$264,2,FALSE),0)+_xlfn.IFNA(HLOOKUP(E43,'I. Project Configuration'!$F$297:$N$298,2,FALSE),0)","v":0}]
[null,null,null,null,null,null,null,null,null,null,null,null,null,null,null,null,null,null,{"$f":"SUMIF(epcPadMt,E44,$F$42:$F$46)","v":0},{"$f":"_xlfn.IFNA(HLOOKUP(E44,'I. Project Configuration'!$F$263:$N$264,2,FALSE),0)+_xlfn.IFNA(HLOOKUP(E44,'I. Project Configuration'!$F$297:$N$298,2,FALSE),0)","v":0}]
[null,null,null,null,null,null,null,null,null,null,null,null,null,null,null,null,null,null,{"$f":"SUMIF(epcPadMt,E45,$F$42:$F$46)","v":0},{"$f":"_xlfn.IFNA(HLOOKUP(E45,'I. Project Configuration'!$F$263:$N$264,2,FALSE),0)+_xlfn.IFNA(HLOOKUP(E45,'I. Project Configuration'!$F$297:$N$298,2,FALSE),0)","v":0}]
[null,null,null,null,null,null,null,null,null,null,null,null,null,null,null,null,null,null,{"$f":"SUMIF(epcPadMt,E46,$F$42:$F$46)","v":0},{"$f":"_xlfn.IFNA(HLOOKUP(E46,'I. Project Configuration'!$F$263:$N$264,2,FALSE),0)+_xlfn.IFNA(HLOOKUP(E46,'I. Project Configuration'!$F$297:$N$298,2,FALSE),0)","v":0}]
[null,null,null,null,"If LTC, please specify the From Bus being the winding with load tap changer."]
[]
["(Equivalent) Generators",null,null,null,"Aux Load"]
[null,"No. of Individual Units","Bus Name",null,null,"Bus Name","MW"]
[null,null,null,null,null,null,null,null,null,null,null,null,null,null,null,null,null,null,{"$f":"SUMIF(A$51:A$55,A51,B$51:B$55)","v":0},{"$f":"HLOOKUP(A51,SectionII,9,FALSE)","v":{"$error":"#N/A"}}]
[null,null,null,null,null,null,{"$f":"'I. Project Configuration'!F6-'III. Power Flow Model'!G51","v":0},null,null,null,null,null,null,null,null,null,null,null,{"$f":"SUMIF(A$51:A$55,A52,B$51:B$55)","v":0},{"$f":"HLOOKUP(A52,SectionII,9,FALSE)","v":{"$error":"#N/A"}}]
[null,null,null,null,null,null,null,null,null,null,null,null,null,null,null,null,null,null,0,{"$f":"HLOOKUP(A53,SectionII,9,FALSE)","v":{"$error":"#N/A"}}]
[null,null,null,null,"Area","Zone",null,null,null,null,null,null,null,null,null,null,null,null,0,{"$f":"HLOOKUP(A54,SectionII,9,FALSE)","v":{"$error":"#N/A"}}]
[null,null,null,null,1,100,null,null,null,null,null,null,null,null,null,null,null,null,0,{"$f":"HLOOKUP(A55,SectionII,9,FALSE)","v":{"$error":"#N/A"}}]
[]
["Shunt Capacitors",null,null,null,"SVD"]
[null,"Bus Name",null,null,null,"Bus Name",null,"Disclaimer"]
[null,null,null,null,null,null,null,"This EPC tool helps to create an initial draft of the power flow models from project configuration data. It does not fit all project configurations. Use discretion when using the tool. The power flow models may be created without using the tool.\n\nThe models shall be tuned with GE PSLF software to accurately represent all generating and interconnection facilities and produce desired MW injection at the Point of Interconnection."]
[]
[]
[]
[]
[]
[]
["Please Review Bus Parameters"]
["Data","Description"]
["BUS NO","Bus number (integer from 1 to 9999999)",null,null,null,null,null,null,null,null,null,null,null,null,null,null,null,null,{"$f":"COUNTA(C68:Q68)","v":0},"@@@@@@","BUS NO",0]
["BUS NAME","Bus name, an alphanumeric string containing 1 to 12 characters and at least one non-numeric character within quotation marks",null,null,null,null,null,null,null,null,null,null,null,null,null,null,null,null,null,"!@@@@@@@@@@@@","BUS NAME",1]
["BUS KV","Base kV voltage",null,null,null,null,null,null,null,null,null,null,null,null,null,null,null,null,null,"##0.0##","BUS KV",2]
["TYPE","bus type: \n0 for swing bus; \n1 for unconstrained bus (PQ bus); \n2 for generator bus (PV bus); \n-2 for generator bus with reactive power limits disabled.",null,null,null,null,null,null,null,null,null,null,null,null,null,null,null,null,null,"0","TYPE",3]
["VSCHED","Scheduled voltage",null,null,null,null,null,null,null,null,null,null,null,null,null,null,null,null,null,"0.00","VSCHED",4]
["VMAX","maximum bus voltage",null,null,null,null,null,null,null,null,null,null,null,null,null,null,null,null,null,"0.00","VMAX",5]
["VMIN","minimum bus voltage",null,null,null,null,null,null,null,null,null,null,null,null,null,null,null,null,null,"0.00","VMIN",6]
[]
["Please Review Generator Parameters"]
["Data","Description"]
["BUS NO","Bus number (integer from 1 to 9999999)",null,null,null,null,null,null,null,null,null,null,null,null,null,null,null,null,{"$f":"COUNTA(C78:G78)","v":0},"@@@@@@","BUS NO",0]
["BUS NAME","Bus name, an alphanumeric string containing 1 to 12 characters and at least one non-numeric character within quotation marks",null,null,null,null,null,null,null,null,null,null,null,null,null,null,null,null,null,"!@@@@@@@@@@@@","BUS NAME",1]
["BUS KV","Base kV voltage",null,null,null,null,null,null,null,null,null,null,null,null,null,null,null,null,null,"##0.###","BUS KV",2]
["ID","generator id",null,null,null,null,null,null,null,null,null,null,null,null,null,null,null,null,null,"!@@","ID",3]
["LONG ID","Long identifier",null,null,null,null,null,null,null,null,null,null,null,null,null,null,null,null,null,"!@@@@@@@@@@@@@@@","LONG ID",4]
["STATUS","Generator status 1=in service; 0=out of service",null,null,null,null,null,null,null,null,null,null,null,null,null,null,null,null,null,"0","STATUS",5]
["REGULATING BUS NO","The bus number this generator will regulate the voltage for",null,null,null,null,null,null,null,null,null,null,null,null,null,null,null,null,null,"@@@@@@","REGULATING BUS NO",6]
["REGULATING BUS NAME","The bus name this generator will regulate the voltage for",null,null,null,null,null,null,null,null,null,null,null,null,null,null,null,null,null,"!@@@@@@@@@@@@","REGULATING BUS NAME",7]
["REGULATING BUS kV","The bus voltage this generator will regulate the voltage for",null,null,null,null,null,null,null,null,null,null,null,null,null,null,null,null,null,"##0.###","REGULATING BUS kV",8]
["PGEN","real power output",null,null,null,null,null,null,null,null,null,null,null,null,null,null,null,null,{"$f":"SUM(C87:C91)","v":0},"##0.##","PGEN",9]
["PMAX","max real power output",null,null,null,null,null,null,null,null,null,null,null,null,null,null,null,null,null,"##0.##","PMAX",10]
["PMIN","min real power output",null,null,null,null,null,null,null,null,null,null,null,null,null,null,null,null,null,"##0.##","PMIN",11]
["QGEN","reactive power output",null,null,null,null,null,null,null,null,null,null,null,null,null,null,null,null,null,"##0.##","QGEN",12]
["QMAX","max reactive power output",null,null,null,null,null,null,null,null,null,null,null,null,null,null,null,null,null,"##0.##","QMAX",13]
["QMIN","min reactive power output",null,null,null,null,null,null,null,null,null,null,null,null,null,null,null,null,null,"##0.##","QMIN",14]
["MVA BASE","generator MVA base",null,null,null,null,null,null,null,null,null,null,null,null,null,null,null,null,null,"##0.##","MVA BASE",15]
["BASE LOAD FLAG","=0 pgen response to frequency change;\n=1 pgen can't be increased;\n=2 pgen can't be increased or decreased",null,null,null,null,null,null,null,null,null,null,null,null,null,null,null,null,null,"0","BASE LOAD FLAG",16]
["TURBINE TYPE","type of turbine",null,null,null,null,null,null,null,null,null,null,null,null,null,null,null,null,null,"##","TURBINE TYPE",17]
["PMAX2","used to save irated MW",null,null,null,null,null,null,null,null,null,null,null,null,null,null,null,null,null,"##0.##","PMAX2",18]
[]
["Please Review Transformer Parameters"]
["Data","Description",null,null,null,null,null,null,null,null,null,null,null,null,null,null,null,null,{"$f":"COUNTA(C99:J99)","v":0}]
["H Bus No","H winding bus number",null,null,null,null,null,null,null,null,null,null,null,null,null,null,null,null,null,"@@@@@@","H Bus No",0]
["H Bus Name","H winding bus name",null,null,null,null,null,null,null,null,null,null,null,null,null,null,null,null,null,"!@@@@@@@@@@@@","H Bus Name",1]
["H Bus kV","H winding bus voltage",null,null,null,null,null,null,null,null,null,null,null,null,null,null,null,null,null,"##0.0##","H Bus kV",2]
["X Bus No","X winding bus number",null,null,null,null,null,null,null,null,null,null,null,null,null,null,null,null,null,"@@@@@@","X Bus No",3]
["X Bus Name","X winding bus name",null,null,null,null,null,null,null,null,null,null,null,null,null,null,null,null,null,"!@@@@@@@@@@@@","X Bus Name",4]
["X Bus kV","X winding bus voltage",null,null,null,null,null,null,null,null,null,null,null,null,null,null,null,null,null,"##0.0##","X Bus kV",5]
["ck id","circuit id",null,null,null,null,null,null,null,null,null,null,null,null,null,null,null,null,null,"!@@","ck id",6]
["long id","long identifier",null,null,null,null,null,null,null,null,null,null,null,null,null,null,null,null,null,"!@@@@@@@@@@@@@@@","long id",7]
["status","status",null,null,null,null,null,null,null,null,null,null,null,null,null,null,null,null,null,"0","status",8]
["type","1 or 11: no control;\n2 or 12: control voltage by adjsuting voltage tap ratio",null,null,null,null,null,null,null,null,null,null,null,null,null,null,null,null,null,"##","type",9]
["Reg Bus No","regulated bus number",null,null,null,null,null,null,null,null,null,null,null,null,null,null,null,null,null,"@@@@@@","Reg Bus No",10]
["Reg Bus Name","regulated bus name",null,null,null,null,null,null,null,null,null,null,null,null,null,null,null,null,null,"!@@@@@@@@@@@@","Reg Bus Name",11]
["Reg Bus kV","regulated bus kV",null,null,null,null,null,null,null,null,null,null,null,null,null,null,null,null,null,"##0.0##","Reg Bus kV",12]
["Y Bus No","Y winding bus number",null,null,null,null,null,null,null,null,null,null,null,null,null,null,null,null,null,"@@@@@@","Y Bus No",13]
["Y Bus Name","Y winding bus name",null,null,null,null,null,null,null,null,null,null,null,null,null,null,null,null,null,"!@@@@@@@@@@@@","Y Bus Name",14]
["Y Bus kV","Y winding kV",null,null,null,null,null,null,null,null,null,null,null,null,null,null,null,null,null,"##0.0##","Y Bus kV",15]
["Internal Bus No","internal bus number",null,null,null,null,null,null,null,null,null,null,null,null,null,null,null,null,null,"@@@@@@","Internal Bus No",16]
["Internal Bus Name","internal bus name",null,null,null,null,null,null,null,null,null,null,null,null,null,null,null,null,null,"!@@@@@@@@@@@@","Internal Bus Name",17]
["Internal Bus kV","internal bus kV",null,null,null,null,null,null,null,null,null,null,null,null,null,null,null,null,null,"##0.0##","Internal Bus kV",18]
["MVA Base","H-X MVA base",null,null,null,null,null,null,null,null,null,null,null,null,null,null,null,null,null,"##0.##","MVA Base",19]
["H-X r","H-X resistance",null,null,null,null,null,null,null,null,null,null,null,null,null,null,null,null,null,"#0.##########","H-X r",20]
["H-X x","H-Y reactance",null,null,null,null,null,null,null,null,null,null,null,null,null,null,null,null,null,"#0.##########","H-X x",21]
["H-Y r","H-Y resistance",null,null,null,null,null,null,null,null,null,null,null,null,null,null,null,null,null,"#0.##########","H-Y r",22]
["H-Y x","H-Y reactance",null,null,null,null,null,null,null,null,null,null,null,null,null,null,null,null,null,"#0.##########","H-Y x",23]
["X-Y r","X-Y resistance",null,null,null,null,null,null,null,null,null,null,null,null,null,null,null,null,null,"#0.##########","X-Y r",24]
["X-Y x","X-Y reactance",null,null,null,null,null,null,null,null,null,null,null,null,null,null,null,null,null,"#0.##########","H-Y x",25]
["H Bus Nominal kV","H winding nominal voltage",null,null,null,null,null,null,null,null,null,null,null,null,null,null,null,null,null,"##0.0##","H Bus Nominal kV",26]
["X Bus Nominal kV","X winding nominal voltage",null,null,null,null,null,null,null,null,null,null,null,null,null,null,null,null,null,"##0.0##","X Bus Nominal kV",27]
["Y Bus Nominal kV","Y winding nominal voltage",null,null,null,null,null,null,null,null,null,null,null,null,null,null,null,null,null,"##0.0##","Y Bus Nominal kV",28]
["Rating 1","H winding normal rating",null,null,null,null,null,null,null,null,null,null,null,null,null,null,null,null,null,"###0.##","Rating 1",29]
["Rating 2","H winding emergency rating",null,null,null,null,null,null,null,null,null,null,null,null,null,null,null,null,null,"###0.##","Rating 2",30]
["max tap","maximum TCUL ratio",null,null,null,null,null,null,null,null,null,null,null,null,null,null,null,null,null,"0.###","max tap",31]
["min tap","minimum TCUL ratio",null,null,null,null,null,null,null,null,null,null,null,null,null,null,null,null,null,"0.###","min tap",32]
["max v","maximum voltage at controlled bus",null,null,null,null,null,null,null,null,null,null,null,null,null,null,null,null,null,"0.0##","max v",33]
["min v","minimum voltage at controlled bus",null,null,null,null,null,null,null,null,null,null,null,null,null,null,null,null,null,"0.0##","min v",34]
["tap step size","TCUL step",null,null,null,null,null,null,null,null,null,null,null,null,null,null,null,null,null,"0.###","tap step size",35]
["variable tap","TCUL tap position (H winding)",null,null,null,null,null,null,null,null,null,null,null,null,null,null,null,null,null,"0.###","variable tap",36]
["H fixed tap","H winding fixed tap position",null,null,null,null,null,null,null,null,null,null,null,null,null,null,null,null,null,"0.###","H fixed tap",37]
["X fixed tap","X winding fixed tap position",null,null,null,null,null,null,null,null,null,null,null,null,null,null,null,null,null,"0.###","X fixed tap",38]
["Y fixed tap","Y winding fixed tap position",null,null,null,null,null,null,null,null,null,null,null,null,null,null,null,null,null,"0.###","Y fixed tap",39]
["H-Y MVA Base","H-Y MVA Base",null,null,null,null,null,null,null,null,null,null,null,null,null,null,null,null,null,"###0.##","H-Y MVA Base",40]
["X-Y MVA Base","X-Y MVA Base",null,null,null,null,null,null,null,null,null,null,null,null,null,null,null,null,null,"###0.##","X-Y MVA Base",41]
["X rating 1","X winding normal rating",null,null,null,null,null,null,null,null,null,null,null,null,null,null,null,null,null,"###0.##","X rating 1",42]
["X rating 2","X winding emergency rating",null,null,null,null,null,null,null,null,null,null,null,null,null,null,null,null,null,"###0.##","X rating 2",43]
["Y rating 1","Y winding normal rating",null,null,null,null,null,null,null,null,null,null,null,null,null,null,null,null,null,"###0.##","Y rating 1",44]
["Y rating 2","Y winding emergency rating",null,null,null,null,null,null,null,null,null,null,null,null,null,null,null,null,null,"###0.##","Y rating 2",45]
[]
["Please Review Line Parameters"]
["Data","Description"]
["From Bus No","line from bus No.",null,null,null,null,null,null,null,null,null,null,null,null,null,null,null,null,{"$f":"COUNTA(C149:J149)","v":0},"@@@@@@","From Bus No",0]
["From Bus Name","line from bus Name.",null,null,null,null,null,null,null,null,null,null,null,null,null,null,null,null,null,"!@@@@@@@@@@@@","From Bus Name",1]
["From Bus kV","line from bus kV.",null,null,null,null,null,null,null,null,null,null,null,null,null,null,null,null,null,"##0.0##","From Bus kV",2]
["To Bus No","line to bus No.",null,null,null,null,null,null,null,null,null,null,null,null,null,null,null,null,null,"@@@@@@","To Bus No",3]
["To Bus Name","line to bus Name.",null,null,null,null,null,null,null,null,null,null,null,null,null,null,null,null,null,"!@@@@@@@@@@@@","To Bus Name",4]
["To Bus kV","line to bus kV.",null,null,null,null,null,null,null,null,null,null,null,null,null,null,null,null,null,"##0.0##","To Bus kV",5]
["ck id","circuit id",null,null,null,null,null,null,null,null,null,null,null,null,null,null,null,null,null,"!@@","ck id",6]
["seg id","section number",null,null,null,null,null,null,null,null,null,null,null,null,null,null,null,null,null,"!@@","seg id",7]
["long id","long identifier",null,null,null,null,null,null,null,null,null,null,null,null,null,null,null,null,null,"!@@@@@@@@@@@@@@@","long id",8]
["status","status",null,null,null,null,null,null,null,null,null,null,null,null,null,null,null,null,null,0,"status",9]
["R","line section resistance",null,null,null,null,null,null,null,null,null,null,null,null,null,null,null,null,null,"#0.0#########","R",10]
["X","line section reactance",null,null,null,null,null,null,null,null,null,null,null,null,null,null,null,null,null,"#0.0#########","X",11]
["B","section total charging sequence",null,null,null,null,null,null,null,null,null,null,null,null,null,null,null,null,null,"#0.0#########","B",12]
["MVA rating 1","summer normal rating",null,null,null,null,null,null,null,null,null,null,null,null,null,null,null,null,null,"###0.####","MVA rating 1",13]
["MVA rating 2","summer emergency rating",null,null,null,null,null,null,null,null,null,null,null,null,null,null,null,null,null,"###0.####","MVA rating 2",14]
["MVA rating 3","winter normal rating",null,null,null,null,null,null,null,null,null,null,null,null,null,null,null,null,null,"###0.####","MVA rating 3",15]
["MVA rating 4","winter emergency rating",null,null,null,null,null,null,null,null,null,null,null,null,null,null,null,null,null,"###0.####","MVA rating 4",16]
["line length","line length",null,null,null,null,null,null,null,null,null,null,null,null,null,null,null,null,null,"##0.0#","MVA rating 3",17]
[]
["Please Review Load Parameters"]
["Data","Description"]
["Bus No","load bus No.",null,null,null,null,null,null,null,null,null,null,null,null,null,null,null,null,{"$f":"COUNTA(C170:G170)","v":0},"@@@@@@","Bus No",0]
["Bus Name","load bus name",null,null,null,null,null,null,null,null,null,null,null,null,null,null,null,null,null,"!@@@@@@@@@@@@","Bus Name",1]
["Bus kV","load bus voltage",null,null,null,null,null,null,null,null,null,null,null,null,null,null,null,null,null,"##0.0##","Bus kV",2]
["load id","load id",null,null,null,null,null,null,null,null,null,null,null,null,null,null,null,null,null,"!@@","load id",3]
["long id","long identifier",null,null,null,null,null,null,null,null,null,null,null,null,null,null,null,null,null,"!@@@@@@@@@@@@@@@","long id",4]
["status","status",null,null,null,null,null,null,null,null,null,null,null,null,null,null,null,null,null,"0","status",5]
["MW","constant MVA real power load",null,null,null,null,null,null,null,null,null,null,null,null,null,null,null,null,null,"##0.0#","MW",6]
["MVAR","constant MVA reactive power load",null,null,null,null,null,null,null,null,null,null,null,null,null,null,null,null,null,"##0.0#","MVAR",7]
[]
["Please Review Shunt Capacitor Parameters"]
["Data","Description"]
["From Bus No","from bus No.",null,null,null,null,null,null,null,null,null,null,null,null,null,null,null,null,{"$f":"COUNTA(C181:G181)","v":0},"@@@@@@","From Bus No",0]
["From Bus Name","from bus Name.",null,null,null,null,null,null,null,null,null,null,null,null,null,null,null,null,null,"!@@@@@@@@@@@@","From Bus Name",1]
["From Bus kV","from bus kV.",null,null,null,null,null,null,null,null,null,null,null,null,null,null,null,null,null,"##0.0##","From Bus kV",2]
["To Bus No","to bus No. or -1",null,null,null,null,null,null,null,null,null,null,null,null,null,null,null,null,null,"@@@@@@","To Bus No",3]
["To Bus Name","to bus Name.",null,null,null,null,null,null,null,null,null,null,null,null,null,null,null,null,null,"!@@@@@@@@@@@@","To Bus Name",4]
["To Bus kV","to bus kV.",null,null,null,null,null,null,null,null,null,null,null,null,null,null,null,null,null,"##0.0##","To Bus kV",5]
["ck id","shunt id",null,null,null,null,null,null,null,null,null,null,null,null,null,null,null,null,null,"!@@","ck id",6]
["seg id","section number",null,null,null,null,null,null,null,null,null,null,null,null,null,null,null,null,null,"!@@","section number",7]
["long id","long identifier",null,null,null,null,null,null,null,null,null,null,null,null,null,null,null,null,null,"!@@@@@@@@@@@@@@@","long id",8]
["status","status",null,null,null,null,null,null,null,null,null,null,null,null,null,null,null,null,null,"0","status",9]
["g","actual shunt conductance (per unit)",null,null,null,null,null,null,null,null,null,null,null,null,null,null,null,null,null,"#0.0###","g",10]
["b","actual shunt susceptance (per unit)",null,null,null,null,null,null,null,null,null,null,null,null,null,null,null,null,null,"#0.0###","b",11]
[]
["Please Enter SVD Parameters"]
["Data","Description"]
["Bus No","bus No.",null,null,null,null,null,null,null,null,null,null,null,null,null,null,null,null,{"$f":"COUNTA(C196:G196)","v":0},"@@@@@@","Bus No",0]
["Bus Name","bus Name.",null,null,null,null,null,null,null,null,null,null,null,null,null,null,null,null,null,"!@@@@@@@@@@@@","Bus Name",1]
["Bus kV","bus kV.",null,null,null,null,null,null,null,null,null,null,null,null,null,null,null,null,null,"##0.0##","Bus kV",2]
["id","SVD id",null,null,null,null,null,null,null,null,null,null,null,null,null,null,null,null,null,"!@@","id",3]
["long id","long identifier",null,null,null,null,null,null,null,null,null,null,null,null,null,null,null,null,null,"!@@@@@@@@@@@@@@@","long id",4]
["status","status",null,null,null,null,null,null,null,null,null,null,null,null,null,null,null,null,null,"0","status",5]
["type","1: switched stepwise and conitnuous control\n2: continuous control\n3: all-or-nothing full on/off control\n4: swithced stepwise control only",null,null,null,null,null,null,null,null,null,null,null,null,null,null,null,null,null,"0","type",6]
["Reg Bus No","regulated bus number",null,null,null,null,null,null,null,null,null,null,null,null,null,null,null,null,null,"@@@@@@","Reg Bus No",7]
["Reg Bus Name","regulated bus name",null,null,null,null,null,null,null,null,null,null,null,null,null,null,null,null,null,"!@@@@@@@@@@@@","Reg Bus Name",8]
["Reg Bus kV","regulated bus kV",null,null,null,null,null,null,null,null,null,null,null,null,null,null,null,null,null,"##0.0##","Reg Bus kV",9]
["g","constant real per unit admittance",null,null,null,null,null,null,null,null,null,null,null,null,null,null,null,null,null,"#0.0###","g",10]
["b","user-specified per unit susceptance",null,null,null,null,null,null,null,null,null,null,null,null,null,null,null,null,null,"#0.0###","b",11]
["vband","bandwidth/2 of voltage control deadband",null,null,null,null,null,null,null,null,null,null,null,null,null,null,null,null,null,"#0.0###","vband",12]
["bmin","minimum B of continuous element in p.u.",null,null,null,null,null,null,null,null,null,null,null,null,null,null,null,null,null,"#0.0###","bmin",13]
["bmax","maximum B of continuous element in p.u.",null,null,null,null,null,null,null,null,null,null,null,null,null,null,null,null,null,"#0.0###","bmax",14]
["nstep-1","number  of equal admittance step in the first switched element",null,null,null,null,null,null,null,null,null,null,null,null,null,null,null,null,null,"00","nstep-1",15]
["bstep-1","susceptance of each step in the first switched element ",null,null,null,null,null,null,null,null,null,null,null,null,null,null,null,null,null,"#0.0###","bstep-1",16]
["nstep-2","number  of equal admittance step in the second switched element",null,null,null,null,null,null,null,null,null,null,null,null,null,null,null,null,null,"00","nstep-2",17]
["bstep-2","susceptance of each step in the second switched element ",null,null,null,null,null,null,null,null,null,null,null,null,null,null,null,null,null,"#0.0###","bstep-2",18]
["vrefmin","voltage reference minimum, p.u.",null,null,null,null,null,null,null,null,null,null,null,null,null,null,null,null,null,"#0.0###","vrefmin",19]
["verfmax","voltage reference maximum, p.u.",null,null,null,null,null,null,null,null,null,null,null,null,null,null,null,null,null,"#0.0###","verfmax",20]
[]
[]
[]
[null,null,null,null,null,"Tip: While .epc entries are created below, it also prepares header on the dynamic model tab and wipe out existing data from dynamic model tab. It is recommended that you complete the epc model first, then work on the dynamic model. "]

{"sheet":"IV. Dynamic Model","index":4,"n_rows":176,"n_cols":18,"rows_kept":176,"cut":false,"hidden":false,"merged":[[177,0,180,5],[8,7,19,9],[25,7,36,9],[124,11,124,12],[21,6,22,6],[153,6,154,9],[24,7,24,8],[23,0,23,5],[83,0,83,5],[122,0,122,5],[36,6,39,6],[40,6,42,6],[0,0,0,9],[124,13,124,17],[152,11,152,12],[152,13,152,17],[123,6,124,9],[65,6,80,6],[81,6,82,6],[150,0,150,5],[1,11,1,17],[1,0,1,5]]}
[{"$f":"Instructions!C10","v":"Sample Wind IR"}]
["Generator Model",null,null,null,null,null,"Comment",null,null,null,null,"Do Not Write"]
["Generator",null,null,null,null,null,null,null,null,null,null,{"$f":"COUNTA(B3:F3)","v":0}]
["Generator Bus"]
["Model Name"]
["mva"]
["lvplsw"]
["rrpwr",null,null,null,null,null,null,"Disclaimer"]
["brkpt",null,null,null,null,null,null,"This DYD tool helps to create an initial draft of several commonly used dynamic models for inverter based generators. It does not inclue all the models comprehensively. Use discretion when using the tool. The models that are not supported by the tool must be created without using the tool.\n\nThe models shall be tested with GE PSLF software.\n\nThe PRC-024 verification tool is for a quick check of the frequency/voltage ride-through settings. It shall not be interpreted as PRC-024 compliance indicator."]
["zerox"]
["lvpl1"]
["vtmax"]
["lvpnt1"]
["lvpnt0"]
["qmin"]
["accel"]
["tg"]
["tfltr"]
["iqrmax"]
["iqrmin"]
["xe"]
[]
[]
["Electrical Control Model"]
["Generator",null,null,null,null,null,null,"Guideline for Electrical Control Model"]
["Model Name",null,null,null,null,null,null,"reec_a model may be used for both solar and wind generators. If the solar inverters limit or stop active and reactive current under certain voltage threshold, reec_a model must be used to reflect this performance. Otherwise, solar generators may used reec_b model.\n\n"]
["mvab",null,null,null,null,null,"use regc_a mva base"]
["vdip"]
["vup"]
["trv"]
["dbd1"]
["dbd2"]
["kqv"]
["iqh1"]
["iql1"]
["vref0"]
["SOCini",null,null,null,null,null,"reec_c only; skip if not reec_c; "]
["SOCmax"]
["SOCmin"]
["T"]
["iqfrz",null,null,null,null,null,"reec_a only; skip if not reec_a"]
["thld"]
["thld2"]
["tp"]
["qmax"]
["qmin"]
["vmax"]
["vmin"]
["kqp"]
["kqi"]
["kvp"]
["kvi"]
["vref1",null,null,null,null,null,"reec_a only; skip if not reec_a"]
["tiq"]
["dpmax"]
["dpmin"]
["pmax"]
["pmin"]
["imax"]
["tpord"]
["pfflag"]
["vflag"]
["qflag"]
["pflag",null,null,null,null,null,"reec_a only; skip if not reec_a"]
["pqflag"]
["vq1",null,null,null,null,null,"reec_a or reec_c; skip if reec_b"]
["iq1"]
["vq2"]
["iq2"]
["vq3"]
["iq3"]
["vq4"]
["iq4"]
["vp1"]
["ip1"]
["vp2"]
["ip2"]
["vp3"]
["ip3"]
["vp4"]
["ip4"]
[]
[]
["Plant Control Model"]
["Generator"]
["Model Name"]
["monitored bus",null,null,null,null,null,"must enter"]
["monitored branch",null,null,null,null,null,"optional"]
["mvab",null,null,null,null,null,"use regc_a mva base"]
["tfltr"]
["kp"]
["ki"]
["tft"]
["tfv"]
["refflg"]
["vfrz"]
["rc"]
["xc"]
["kc"]
["vcmpflg"]
["emax"]
["emin"]
["dbd"]
["qmax"]
["qmin"]
["kpg"]
["kig"]
["tp"]
["fdbd1"]
["fdbd2"]
["femax"]
["femin"]
["pmax"]
["pmin"]
["tlag"]
["ddn"]
["dup"]
["frqflg"]
["outflag"]
["puflag"]
[]
[]
["Frequency Ride-Through Model"]
["Generator",null,null,null,null,null,"PRC-024 Verification (Dots should be outside the PRC-024 boundary)"]
["Model Name",null,null,null,null,null,null,null,null,null,null,"PRC-024",null,"dftrp"]
["monitored bus",null,null,null,null,null,null,null,null,null,null,"Time","Frequency",{"$f":"B124","v":0},{"$f":"C124","v":0},{"$f":"D124","v":0},0,0]
["fref",null,null,null,null,null,null,null,null,null,null,0,61.7]
["dftrp1",null,null,null,null,null,null,null,null,null,null,30,61.7,{"$f":"IF(AND(B128=0,B138=0),\"\",B128+B$127)","v":""},{"$f":"IF(AND(C128=0,C138=0),\"\",C128+C$127)","v":""},{"$f":"IF(AND(D128=0,D138=0),\"\",D128+D$127)","v":""},{"$f":"IF(AND(E128=0,E138=0),\"\",E128+E$127)","v":""},{"$f":"IF(AND(F128=0,F138=0),\"\",F128+F$127)","v":""}]
["dftrp2",null,null,null,null,null,null,null,null,null,null,30,61.6,{"$f":"IF(AND(B129=0,B139=0),\"\",B129+B$127)","v":""},{"$f":"IF(AND(C129=0,C139=0),\"\",C129+C$127)","v":""},{"$f":"IF(AND(D129=0,D139=0),\"\",D129+D$127)","v":""},"",""]
["dftrp3",null,null,null,null,null,null,null,null,null,null,180,61.6,{"$f":"IF(AND(B130=0,B140=0),\"\",B130+B$127)","v":""},"","","",""]
["dftrp4",null,null,null,null,null,null,null,null,null,null,180,60.6,"","","","",""]
["dftrp5",null,null,null,null,null,null,null,null,null,null,200,60.6,"","","","",""]
["dftrp6",null,null,null,null,null,null,null,null,null,null,200,59.4,"","","","",""]
["dftrp7",null,null,null,null,null,null,null,null,null,null,180,59.4,"","","","",""]
["dftrp8",null,null,null,null,null,null,null,null,null,null,180,58.4,"","","","",""]
["dftrp9",null,null,null,null,null,null,null,null,null,null,30,58.4,"","","","",""]
["dftrp10",null,null,null,null,null,null,null,null,null,null,30,57.8,"","","","",""]
["dttrp1",null,null,null,null,null,null,null,null,null,null,7.5,57.8]
["dttrp2",null,null,null,null,null,null,null,null,null,null,7.5,57.3]
["dttrp3",null,null,null,null,null,null,null,null,null,null,0.75,57.3]
["dttrp4",null,null,null,null,null,null,null,null,null,null,0.75,57]
["dttrp5",null,null,null,null,null,null,null,null,null,null,0,57]
["dttrp6"]
["dttrp7"]
["dttrp8"]
["dttrp9"]
["dttrp10"]
["alarm"]
[]
[]
["Voltage Ride-Through Model"]
["Generator"]
["Model Name",null,null,null,null,null,null,null,null,null,null,"PRC-024",null,"dvtrp"]
["monitored bus",null,null,null,null,null,"PRC-024 Verification (Dots should be outside the PRC-024 boundary)",null,null,null,null,"Time","Voltage",{"$f":"B152","v":0},{"$f":"C152","v":0},{"$f":"D152","v":0},0,0]
["vref",null,null,null,null,null,null,null,null,null,null,0,1.2]
["dvtrp1",null,null,null,null,null,null,null,null,null,null,0.2,1.2,{"$f":"IF(AND(B156=0,B166=0),\"\",B156+B$155)","v":""},{"$f":"IF(AND(C156=0,C166=0),\"\",C156+C$155)","v":""},"","",""]
["dvtrp2",null,null,null,null,null,null,null,null,null,null,0.2,1.175,{"$f":"IF(AND(B157=0,B167=0),\"\",B157+B$155)","v":""},"","","",""]
["dvtrp3",null,null,null,null,null,null,null,null,null,null,0.5,1.175,"","","","",""]
["dvtrp4",null,null,null,null,null,null,null,null,null,null,0.5,1.1499999999999999,"","","","",""]
["dvtrp5",null,null,null,null,null,null,null,null,null,null,1,1.1499999999999999,"","","","",""]
["dvtrp6",null,null,null,null,null,null,null,null,null,null,1,1.1000000000000001,"","","","",""]
["dvtrp7",null,null,null,null,null,null,null,null,null,null,4,1.1000000000000001,"","","","",""]
["dvtrp8",null,null,null,null,null,null,null,null,null,null,4,0.9,"","","","",""]
["dvtrp9",null,null,null,null,null,null,null,null,null,null,3,0.9,"","","","",""]
["dvtrp10",null,null,null,null,null,null,null,null,null,null,3,0.75,"","","","",""]
["dttrp1",null,null,null,null,null,null,null,null,null,null,2,0.75]
["dttrp2",null,null,null,null,null,null,null,null,null,null,2,0.65]
["dttrp3",null,null,null,null,null,null,null,null,null,null,0.3,0.65]
["dttrp4",null,null,null,null,null,null,null,null,null,null,0.3,0.45]
["dttrp5",null,null,null,null,null,null,null,null,null,null,0.15,0.45]
["dttrp6",null,null,null,null,null,null,null,null,null,null,0.15,0]
["dttrp7",null,null,null,null,null,null,null,null,null,null,0,0]
["dttrp8"]
["dttrp9"]
["dttrp10"]
["alarm"]

{"sheet":"V. IR Validation & Comments","index":5,"n_rows":189,"n_cols":16,"rows_kept":189,"cut":false,"hidden":false,"merged":[[21,1,21,7],[24,1,24,7],[80,0,81,0],[80,1,81,7],[80,8,81,8],[82,0,84,8],[31,0,32,0],[177,1,177,7],[178,0,180,8],[128,0,129,8],[144,0,145,0],[144,1,145,7],[135,1,135,7],[53,0,55,8],[108,0,109,0],[108,1,109,7],[108,8,109,8],[98,8,99,8],[168,1,168,7],[169,0,171,8],[146,0,148,8],[48,1,48,7],[49,0,51,8],[27,1,27,7],[188,0,190,8],[76,1,76,7],[77,0,79,8],[174,0,176,8],[181,1,181,7],[182,0,184,8],[172,1,173,7],[172,0,173,0],[172,8,173,8],[149,1,149,7],[150,0,152,8],[153,1,153,7],[154,0,156,8],[132,0,134,8],[139,0,140,0],[139,1,140,7],[139,8,140,8],[141,0,143,8],[185,0,186,8],[89,1,89,7],[165,0,167,8],[160,0,162,8],[163,0,164,0],[163,1,164,7],[187,1,187,7],[118,0,119,0],[118,1,119,7],[118,8,119,8],[130,8,131,8],[45,0,47,8],[44,1,44,7],[37,0,39,8],[103,0,104,0],[103,1,104,7],[103,8,104,8],[105,0,107,8],[85,1,85,7],[86,0,88,8],[125,0,127,8],[113,0,114,0],[113,1,114,7],[113,8,114,8],[56,1,56,7],[57,0,59,8],[72,1,72,7],[73,0,75,8],[159,1,159,7],[18,8,19,8],[66,0,67,8],[20,1,20,7],[41,0,43,8],[100,0,102,8],[40,1,40,7],[130,0,131,0],[130,1,131,7],[123,8,124,8],[31,1,32,7],[31,8,32,8],[33,0,35,8],[52,1,52,7],[25,0,26,8],[115,0,117,8],[120,0,122,8],[123,0,124,0],[123,1,124,7],[60,0,61,8],[62,1,62,7],[63,0,65,8],[90,0,92,8],[93,0,94,0],[28,0,30,8],[163,8,164,8],[136,0,138,8],[144,8,145,8],[93,1,94,7],[93,8,94,8],[95,0,97,8],[110,0,112,8],[68,1,68,7],[69,0,71,8],[98,0,99,0],[98,1,99,7],[157,0,158,8],[1,0,1,8],[1,10,1,17],[2,10,5,17],[6,10,6,17],[7,11,7,12],[7,13,7,17],[11,11,11,12],[11,13,11,17],[12,13,12,17],[6,0,7,2],[6,3,7,5],[8,0,9,8],[10,1,10,7],[13,13,13,17],[12,11,12,12],[13,11,13,12],[2,0,5,8],[14,11,14,12],[14,13,14,17],[15,11,15,12],[15,13,15,17],[8,11,8,12],[8,13,8,17],[9,11,9,12],[6,6,7,8],[9,13,9,17],[10,11,10,12],[10,13,10,17],[13,1,13,7],[14,1,14,7],[16,10,16,17],[33,10,33,17],[49,15,49,17],[50,10,59,17],[62,11,62,12],[62,13,62,14],[62,15,62,17],[35,15,35,17],[36,10,45,17],[48,11,48,12],[48,13,48,14],[48,15,48,17],[35,10,35,14],[49,10,49,14],[19,15,19,17],[20,10,31,17],[34,11,34,12],[34,13,34,14],[34,15,34,17],[17,10,17,17],[18,11,18,12],[18,13,18,14],[18,15,18,17],[105,10,105,14],[105,15,105,17],[106,10,115,17],[76,13,76,14],[76,15,76,17],[63,15,63,17],[63,10,63,14],[64,10,73,17],[76,11,76,12],[77,10,77,14],[77,15,77,17],[78,10,87,17],[104,13,104,14],[104,15,104,17],[90,13,90,14],[90,15,90,17],[90,11,90,12],[91,10,91,14],[91,15,91,17],[92,10,101,17],[104,11,104,12],[160,13,160,14],[160,15,160,17],[161,10,161,14],[161,15,161,17],[162,10,171,17],[118,11,118,12],[118,13,118,14],[118,15,118,17],[119,10,119,14],[119,15,119,17],[120,10,129,17],[132,11,132,12],[132,13,132,14],[132,15,132,17],[133,10,133,14],[133,15,133,17],[134,10,143,17],[0,0,0,17],[174,11,174,12],[174,13,174,14],[174,15,174,17],[175,10,175,14],[176,10,185,17],[19,10,19,14],[11,1,11,7],[12,1,12,7],[22,1,22,7],[23,1,23,7],[15,1,15,7],[16,1,16,7],[17,1,17,7],[18,1,19,7],[36,1,36,7],[175,15,175,17],[146,11,146,12],[146,13,146,14],[146,15,146,17],[147,10,147,14],[147,15,147,17],[148,10,157,17],[160,11,160,12]]}
[{"$f":"Instructions!C10","v":"Sample Wind IR"}]
["Customer Confirmation & Validation Checklist",null,null,null,null,null,null,null,null,null,"Comment & Validation Tracking"]
["The following section is intended for:\n1) the Interconnection Customer to review and ensure all items are included and tasks are complete prior to submitting this form for IR validation.\n2) the CAISO and PTO to review the data and attachments for completeness and sufficient to consider the IR valid.",null,null,null,null,null,null,null,null,null,"The following section is intended to identify and track comments and recommendations to and from the parties involved in the IR Validation process.  \nDO NOT DELETE OR CHANGE PREVIOUS COMMENTS. "]
[]
[]
[]
["Customer Confirmation",null,null,"Objective is All Answers = Yes or N/A",null,null,"CAISO & PTO Review",null,null,null,"Version Control:"]
[null,null,null,null,null,null,null,null,null,null,"Date:","Reviewed By:",null,"Comment:"]
["Supporting Document Submittal Confirmation (see Instructions & I. Project Configuration Tabs for further details)"]
[]
["Yes","A completed application in the form of Appendix 1, Word doc including the Study agreement",null,null,null,null,null,null,"Choose"]
["Yes","Authorized signatory document and state of incorporation for the IC's company",null,null,null,null,null,null,"Choose"]
["Yes","Demonstration of Site Exclusivity or posting of a SE Deposit in lieu of",null,null,null,null,null,null,"Choose"]
["Yes","A load flow model",null,null,null,null,null,null,"Choose"]
["Yes","A dynamic data file",null,null,null,null,null,null,"Choose"]
["Yes","A reactive power capability document",null,null,null,null,null,null,"Choose"]
["Yes","Site Drawing showing POI AND Site Map with aerial imagery",null,null,null,null,null,null,"Choose"]
["Yes","A single-line diagram",null,null,null,null,null,null,"Choose",null,"Comments:"]
["Yes","A flat run plot and a bump test plot from the positive sequence transient stability simulation application",null,null,null,null,null,null,"Choose",null,"Date:","mm/dd/yyyy",null,"Commenter Name:"]
["Yes",null,null,null,null,null,null,null,null,null,"Representing:",null,null,null,null,"Choose One"]
["Yes","A plot showing requested MW at the POI from the positive sequence load flow application",null,null,null,null,null,null,"Choose",null,"Comment here:"]
["Yes",".kmz File (Google Earth)",null,null,null,null,null,null,"Choose"]
["Yes","Manufacturer supporting data sheets provided for the generators/inverters",null,null,null,null,null,null,"Choose"]
["Yes","Manufacturer supporting data provided for SCD characteristics",null,null,null,null,null,null,"Choose"]
["Yes","Tower Configuration Diagram",null,null,null,null,null,null,"Choose"]
["Attachment A, Consistency with Appendix 1 Data input, and Non-Technical Validation"]
[]
["Yes","Are data items 1~3 on Appendix 1 properly filled out? ",null,null,null,null,null,null,"Choose"]
["Insert Notes Here:"]
[]
[]
["Yes","Does the Project name meet CAISO and PTO criteria? \n(Ensure compliance with GIDAP BPM Section 5.2 & is not on the Prohibited Project Names List)",null,null,null,null,null,null,"Choose"]
[]
["Insert Notes Here:"]
[null,null,null,null,null,null,null,null,null,null,"Date:","mm/dd/yyyy",null,"Commenter Name:"]
[null,null,null,null,null,null,null,null,null,null,"Representing:",null,null,null,null,"Choose One"]
["Yes","Do the GPS coordinates in Appendix 1 match the Site Map?",null,null,null,null,null,null,"Choose",null,"Comment here:"]
["Insert Notes Here:"]
[]
[]
["Yes","Does the desired net MW at POI in Appendix 1align with I.6 on \"I. Project Configuration\"?",null,null,null,null,null,null,"Choose"]
["Insert Notes Here:"]
[]
[]
["Yes","Does Section 4c in Appendix 1 align with Section II on \"I. Project Configuration\"?",null,null,null,null,null,null,"Choose"]
["Insert Notes Here:"]
[]
[]
[null,"Are the ISD, TOD and COD in Section 4d of Appendix 1 reasonable and achievable?",null,null,null,null,null,null,"Choose",null,"Date:","mm/dd/yyyy",null,"Commenter Name:"]
["Insert Notes Here:",null,null,null,null,null,null,null,null,null,"Representing:",null,null,null,null,"Choose One"]
[null,null,null,null,null,null,null,null,null,null,"Comment here:"]
[]
["Yes","Is the POI an existing (or planned) PTO facility under CAISO control?",null,null,null,null,null,null,"Choose"]
["Insert Notes Here:"]
[]
[]
["Yes","Are all the data on Appendix 1 properly filled out?",null,null,null,null,null,null,"Choose"]
["Insert Notes Here:"]
[]
[]
["Project Configuration Data General Validations"]
[]
["Yes","There are no errors reported on the II. Technical Validation page. All warnings are explained.",null,null,null,null,null,null,"Choose",null,"Date:","mm/dd/yyyy",null,"Commenter Name:"]
["Insert Notes Here:",null,null,null,null,null,null,null,null,null,"Representing:",null,null,null,null,"Choose One"]
[null,null,null,null,null,null,null,null,null,null,"Comment here:"]
[]
["Project Configuration Data  and Power Flow Model(.epc)  "]
[]
["Yes","Does the epc file have PMAX matching item I.2 and PMAX2 matching item I.1?",null,null,null,null,null,null,"Choose"]
["Insert Notes Here:"]
[]
[]
["Yes","Does the auxiliary load in the epc file align with Item I.3 (Aux Load)?",null,null,null,null,null,null,"Choose"]
["Insert Notes Here:"]
[]
[]
["Yes","Does the epc model produce the requested MW injection at POI in item I.6?",null,null,null,null,null,null,"Choose",null,"Date:","mm/dd/yyyy",null,"Commenter Name:"]
["Insert Notes Here:",null,null,null,null,null,null,null,null,null,"Representing:",null,null,null,null,"Choose One"]
[null,null,null,null,null,null,null,null,null,null,"Comment here:"]
[]
["Yes","Does the generator reactive capability curve support items VII.1 (Qmax) and VII.2 (Qmin)?",null,null,null,null,null,null,"Choose"]
[]
["Insert Notes Here:"]
[]
[]
["Yes","Are items VII.1 (QMAX) and VII.2 (QMIN) consistent with QMAX and QMIN in the epc file?",null,null,null,null,null,null,"Choose"]
["Insert Notes Here:"]
[]
[]
["Yes","Are all plant reactive devices properly modeled in the epc file?",null,null,null,null,null,null,"Choose"]
["Insert Notes Here:",null,null,null,null,null,null,null,null,null,"Date:","mm/dd/yyyy",null,"Commenter Name:"]
[null,null,null,null,null,null,null,null,null,null,"Representing:",null,null,null,null,"Choose One"]
[null,null,null,null,null,null,null,null,null,null,"Comment here:"]
["Yes","Are all the voltage controls (generator, plant controller, LTCs, SVDs, etc.) properly coordinated, i.e. no hunting observed among voltage control devices?",null,null,null,null,null,null,"Choose"]
[]
["Insert Notes Here:"]
[]
[]
["Yes","Does the project have sufficient reactive power capability?",null,null,null,null,null,null,"Choose"]
[]
["Insert Notes Here:"]
[]
[]
["Yes","Does the Baseload Flag in epc file matches the generator's frequency response capability?",null,null,null,null,null,null,"Choose"]
[null,null,null,null,null,null,null,null,null,null,"Date:","mm/dd/yyyy",null,"Commenter Name:"]
["Insert Notes Here:",null,null,null,null,null,null,null,null,null,"Representing:",null,null,null,null,"Choose One"]
[null,null,null,null,null,null,null,null,null,null,"Comment here:"]
[]
["Yes","Do the GSU and equivalent pad-mount transformer model in the epc file align with Section VIII.(Transformer Data)?",null,null,null,null,null,null,"Choose"]
[]
["Insert Notes Here:"]
[]
[]
["Yes","Does the line model in the epc file align with Section X. (Interconnection Facilities Line Data)?",null,null,null,null,null,null,"Choose"]
[]
["Insert Notes Here:"]
[]
[]
[null,"Do line impedance data in Items X.28 to X.32 align with internal PTO calculation? (PTO to Answer/Comment, if applicable)",null,null,null,null,null,null,"Choose",null,"Date:","mm/dd/yyyy",null,"Commenter Name:"]
[null,null,null,null,null,null,null,null,null,null,"Representing:",null,null,null,null,"Choose One"]
["Insert Notes Here:",null,null,null,null,null,null,null,null,null,"Comment here:"]
[]
[]
["Yes","Does the collector equivalence model in the epc file align with Section XI.(Collector Data)?",null,null,null,null,null,null,"Choose"]
[]
["Insert Notes Here:"]
[]
[]
["Dynamic Model(.dyd)  "]
[]
["Yes","Are appropriate models used in the dyd file for generator/converter, exciter/Q-var control, governor/P-frequency control, PSS and plant controller (if applicable) ?",null,null,null,null,null,null,"Choose"]
[]
["Insert Notes Here:",null,null,null,null,null,null,null,null,null,"Date:","mm/dd/yyyy",null,"Commenter Name:"]
[null,null,null,null,null,null,null,null,null,null,"Representing:",null,null,null,null,"Choose One"]
[null,null,null,null,null,null,null,null,null,null,"Comment here:"]
["Yes","Do dyd models provided include lhvrt and lhfrt?",null,null,null,null,null,null,"Choose"]
["Insert Notes Here:"]
[]
[]
["Yes","Do the control flags in the dyd file indicate voltage control mode per WECC model validation guideline?",null,null,null,null,null,null,"Choose"]
[]
["Insert Notes Here:"]
[]
[]
["Yes","Are the frequency control flag, frequency control deadband and droops in the .dyd file set properly  to enable primary frequence response?",null,null,null,null,null,null,"Choose"]
[]
["Insert Notes Here:",null,null,null,null,null,null,null,null,null,"Date:","mm/dd/yyyy",null,"Commenter Name:"]
[null,null,null,null,null,null,null,null,null,null,"Representing:",null,null,null,null,"Choose One"]
[null,null,null,null,null,null,null,null,null,null,"Comment here:"]
["Yes","Do the dynamic model(s) pass the flat line test?",null,null,null,null,null,null,"Choose"]
["Insert Notes Here:"]
[]
[]
["Yes","Do the dynamic model(s) pass the bump test?",null,null,null,null,null,null,"Choose"]
["Insert Notes Here:"]
[]
[]
["Single Line Diagram Validations"]
[]
["Yes","Do the # of generation units in the SLD align with I. Project Configuration Item II.9?",null,null,null,null,null,null,"Choose"]
["Insert Notes Here:",null,null,null,null,null,null,null,null,null,"Date:","mm/dd/yyyy",null,"Commenter Name:"]
[null,null,null,null,null,null,null,null,null,null,"Representing:",null,null,null,null,"Choose One"]
[null,null,null,null,null,null,null,null,null,null,"Comment here:"]
["Yes","Does the nominal terminal voltage in the SLD align with I. Project Configuration Item II.10?",null,null,null,null,null,null,"Choose"]
[]
["Insert Notes Here:"]
[]
[]
["Yes","Does the generation rated output in the SLD align with I. Project Configuration Item II.12?",null,null,null,null,null,null,"Choose"]
["Insert Notes Here:"]
[]
[]
["Yes","Do the number of pad-mount transformer(s), the pad-mount transformer(s) data and winding connection in Section VIII of I. Project Configuration match the SLD?",null,null,null,null,null,null,"Choose"]
[]
["Insert Notes Here:",null,null,null,null,null,null,null,null,null,"Date:","mm/dd/yyyy",null,"Commenter Name:"]
[null,null,null,null,null,null,null,null,null,null,"Representing:",null,null,null,null,"Choose One"]
[null,null,null,null,null,null,null,null,null,null,"Comment here:"]
["Yes","Does the auxiliary load in SLD align with I. Project Configuration Item I.3 (Aux Load)?",null,null,null,null,null,null,"Choose"]
["Insert Notes Here:"]
[]
[]
["Yes","Does the Interconnection Facilities Line Data match SLD?",null,null,null,null,null,null,"Choose"]
["Insert Notes Here:"]
[]
[]
["Miscellaneous"]
[]
[null,"There is no other deficiency. (PTO & CAISO to Answer/Comment)",null,null,null,null,null,null,"Choose"]
["Insert Notes Here:"]

{"sheet":"Version Control","index":6,"n_rows":6,"n_cols":4,"rows_kept":6,"cut":false,"hidden":false,"merged":[[0,0,0,3]]}
["Version Tracking"]
["Date:","Verison:","Changes:","By who:"]
["2018-03-15","Intial Final","Initial version for use in Cluster 11","Foster/Zhu"]
["2018-04-03","c11.1","Fix three winding transformer calculation and a few labels","Zhu"]
["2019-03-08","c12.1","Enhancements based on Cluster 11 feedback","Zhu"]
["2019-03-11","C12.2","Fix transformer selection on Power Flow Model ","Zhu"]

{"sheet":"Choices - to be hidden","index":7,"n_rows":124,"n_cols":7,"rows_kept":124,"cut":false,"hidden":true,"merged":[]}
["Type","Choose One",null,"Y/N","Choose One",null,"Choose One"]
[null,"Induction",null,null,"Yes",null,"Yes; explain below"]
[null,"Synchronous",null,null,"No",null,"No; explain below"]
[null,"DC With Inverter",null,null,"N/A"]
[null,"Doubly Fed Asynchronous"]
["Phase","Choose One",null,"Y/N","Choose One"]
[null,"Single Phase",null,null,"Yes (See Below)",null,"Choose"]
[null,"Three Phase",null,null,"No",null,"Yes"]
[null,null,null,null,"N/A",null,"No"]
["Connection","Choose One",null,null,null,null,"N/A"]
[null,"Delta"]
[null,"Grounded WYE",null,"Representing","Choose One",null,"Insert Notes Here:"]
[null,"Ungrounded WYE",null,null,"CAISO"]
[null,"Impedance Grounded",null,null,"PTO"]
[null,null,null,null,"Customer"]
[]
["X"]
[null,"X",null,"Turbine Type","Choose One"]
[null,null,null,null,"Type 1","ES source of charging","transmission grid"]
[null,null,null,null,"Type 2",null,"distribution grid"]
[null,null,null,null,"Type 3",null,"on-site generator"]
[null,null,null,null,null,null,"other (please explain)"]
[]
[null,null,null,null,null,"ES charging operation","Follow ISO dispatch instructions"]
["Dig/Ann","Choose One",null,"Turbine Type","Choose one",null,"Be treated as load service"]
[null,"Analog",null,null,"1: steam turbine (except steam of combined cycle)"]
[null,"Digital",null,null,"2: combined cycle steam part","Winding Connection","Wye"]
[null,null,null,null,"3: steam cross-compound",null,"Wye Grounded"]
["PSS","Choose One",null,null,"4: combined cycle total unit (planned gens and details for separate model not available)",null,"Delta"]
[null,"Bus Frequency",null,null,"5: hydro",null,"Delta (Burried)"]
[null,"Shaft Speed",null,null,"6: Internal Combustion Engine (diesel, piston, reciprocating)"]
[null,"Bus Voltage",null,null,"7: diesel turbo charged","Phase Configuration","Vertical"]
[null,"Other (Explain Below)",null,null,"11: GT (single shaft, does not include turbine part)",null,"Horizontal"]
[null,null,null,null,"12: aero derivative GT",null,"Triangular"]
["Unit","Choose One",null,null,"13: single shaft combined cycle"]
[null,"Steam",null,null,"21: type 1 wind turbine (onshore only)"]
[null,"Gas",null,null,"22: type 2 wind turbine (onshore only)"]
[null,"Combined Cycle",null,null,"23: type 3 wind turbine (onshore only)"]
[null,"Hydro",null,null,"24: type 4 wind turbine (onshore only)"]
[null,null,null,null,"25: wind turbine (offshore)"]
["Water Supply","Choose One",null,null,"29: combined cycle combustion turbine part"]
[null,"Run-of-the-River",null,null,"31: photovoltaic"]
[null,"Reservoir",null,null,"41: motor pump"]
[null,null,null,null,"42: energy storage - battery"]
["Hydraulic","Choose One",null,null,"43: energy storage - flywheel"]
[null,"Mechanical-Hydraulic",null,null,"44: energy storage - other"]
[null,"Electro-Hydraulic",null,null,"46: energy storage - compressed air"]
[null,null,null,null,"47: energy storage - concentrated solar power"]
["H","Choose One",null,null,"51: hydrokinetic, axial flow turbine"]
[null,"Sec",null,null,"52: hydrokinetic - wave buoy"]
[null,"MJ/MVA",null,null,"53: hydrokinetic - other"]
[null,null,null,null,"54: energy storage - reversible hydraulic turbine"]
["Synch Gen Model","Choose One",null,null,"99: other"]
[null,"gentpj"]
[null,"gentpf"]
[null,"genrou",null,"Excitation","Choose One"]
[null,"gencc",null,null,"Rotating DC commutator exciter with continuously acting regulator.  The regulator power source is independent of the generator terminal voltage and current."]
[null,"Other (Explain Below)",null,null,"Rotating DC commentator exciter with continuously acting regulator.  The regulator power source is bus fed from the generator terminal voltage."]
[null,null,null,null,"Rotating DC commutator exciter with non-continuously acting regulator (i.e., regulator adjustments are made in discrete increments)."]
["Grounding","Choose One",null,null,"Rotating AC Alternator Exciter with non-controlled (diode) rectifiers.  The regulator power source is independent of the generator terminal voltage and current (not bus-fed)."]
[null,"Solidly Grounded",null,null,"Rotating AC Alternator Exciter with controlled (thyristor) rectifiers.  The regulator power source is fed from the exciter output voltage."]
[null,"Grounded through Impedance",null,null,"Rotating AC Alternator Exciter with controlled (thyristor) rectifiers."]
[null,"Ungrounded",null,null,"Static Exciter with controlled (thyristor) rectifiers.  The regulator power source is bus-fed from the generator terminal voltage."]
[null,null,null,null,"Static Exciter with controlled (thyristor) rectifiers.  The regulator power source is bus-fed from a combination of generator terminal voltage and current (compound-source controlled rectifiers system."]
["Choose from fixed capacitor, SVD, SVC, STATCOM, DVAR, other","Choose One",null,null,"Other? (Specify):"]
[null,"Fixed Capacitor"]
[null,"SVD"]
[null,"SVC",null,"var device","static"]
[null,"STATCOM",null,null,"dynamic"]
[null,"Other (Explain Below)"]
[null,null,null,"reec models","reec_a"]
[null,null,null,null,"reec_b"]
[null,null,null,null,"reec_c"]
["buses",{"$f":"'III. Power Flow Model'!B5","v":0}]
[null,{"$f":"'III. Power Flow Model'!B7","v":0}]
[null,{"$f":"'III. Power Flow Model'!B9","v":0}]
[null,{"$f":"'III. Power Flow Model'!B10","v":0}]
[null,{"$f":"'III. Power Flow Model'!B11","v":0}]
[null,{"$f":"'III. Power Flow Model'!B13","v":0}]
[null,{"$f":"'III. Power Flow Model'!B14","v":0}]
[null,{"$f":"'III. Power Flow Model'!B15","v":0}]
[null,{"$f":"'III. Power Flow Model'!B16","v":0}]
[null,{"$f":"'III. Power Flow Model'!B17","v":0}]
[null,{"$f":"'III. Power Flow Model'!B19","v":0},"gens",{"$f":"'I. Project Configuration'!F15","v":"Gen Type1"}]
[null,{"$f":"'III. Power Flow Model'!B20","v":0},null,{"$f":"'I. Project Configuration'!G15","v":"Gen Type2"}]
[null,{"$f":"'III. Power Flow Model'!B21","v":0},null,{"$f":"'I. Project Configuration'!H15","v":"Gen Type3"}]
[null,{"$f":"'III. Power Flow Model'!B22","v":0},null,{"$f":"'I. Project Configuration'!I15","v":"Gen Type5"}]
[null,{"$f":"'III. Power Flow Model'!B23","v":0},null,{"$f":"'I. Project Configuration'!J15","v":"Gen Type6"}]
[null,{"$f":"'III. Power Flow Model'!B26","v":0},null,{"$f":"'I. Project Configuration'!K15","v":"Gen Type7"}]
[null,{"$f":"'III. Power Flow Model'!B27","v":0},null,{"$f":"'I. Project Configuration'!L15","v":"Gen Type8"}]
[null,{"$f":"'III. Power Flow Model'!B28","v":0},null,{"$f":"'I. Project Configuration'!M15","v":"Gen Type9"}]
[null,{"$f":"'III. Power Flow Model'!B29","v":0},null,{"$f":"'I. Project Configuration'!N15","v":"Gen TypeX"}]
[null,{"$f":"'III. Power Flow Model'!B30","v":0}]
[null,{"$f":"'III. Power Flow Model'!B31","v":0}]
[]
["xfrms",{"$f":"'I. Project Configuration'!F263","v":"GSU"}]
[null,{"$f":"'I. Project Configuration'!I263","v":"PADMOUNTED"}]
[null,{"$f":"'I. Project Configuration'!L263","v":"XFRM3"}]
[null,{"$f":"'I. Project Configuration'!F297","v":"XFMR4"}]
[null,{"$f":"'I. Project Configuration'!I297","v":"XFMR5"},"gen-ties",{"$f":"'I. Project Configuration'!F342","v":"Line1"}]
[null,{"$f":"'I. Project Configuration'!L297","v":"XFMR6"},null,{"$f":"'I. Project Configuration'!G342","v":"Line 2"}]
[null,null,null,{"$f":"'I. Project Configuration'!H342","v":"Line 3"}]
["collectors",{"$f":"'I. Project Configuration'!F384","v":"Collector 1"},null,{"$f":"'I. Project Configuration'!I342","v":"Line 4"}]
[null,{"$f":"'I. Project Configuration'!G384","v":"Collector 2"}]
[null,{"$f":"'I. Project Configuration'!H384","v":"Collector 3"}]
[null,{"$f":"'I. Project Configuration'!I384","v":"Collector 4"}]
[null,{"$f":"'I. Project Configuration'!J384","v":"Collector 5"},"shunt",{"$f":"IF('I. Project Configuration'!F238=\"Fixed Capacitor\",'I. Project Configuration'!F237,\"\")","v":""}]
[null,null,null,{"$f":"IF('I. Project Configuration'!H238=\"Fixed Capacitor\",'I. Project Configuration'!H237,\"\")","v":""}]
["genkv",{"$f":"'I. Project Configuration'!F24","v":0.69},null,{"$f":"IF('I. Project Configuration'!J238=\"Fixed Capacitor\",'I. Project Configuration'!J237,\"\")","v":""}]
[null,{"$f":"'I. Project Configuration'!G24","v":0},null,{"$f":"IF('I. Project Configuration'!L238=\"Fixed Capacitor\",'I. Project Configuration'!L237,\"\")","v":""}]
[null,{"$f":"'I. Project Configuration'!H24","v":0}]
[null,{"$f":"'I. Project Configuration'!I24","v":0}]
[null,{"$f":"'I. Project Configuration'!J24","v":0},"SVD",{"$f":"IF('I. Project Configuration'!F238=\"SVD\",'I. Project Configuration'!F237,\"\")","v":""}]
[null,{"$f":"'I. Project Configuration'!K24","v":0},null,{"$f":"IF('I. Project Configuration'!H238=\"SVD\",'I. Project Configuration'!H237,\"\")","v":""}]
[null,{"$f":"'I. Project Configuration'!L24","v":0},null,{"$f":"IF('I. Project Configuration'!J238=\"SVD\",'I. Project Configuration'!J237,\"\")","v":""}]
[null,{"$f":"'I. Project Configuration'!M24","v":0},null,{"$f":"IF('I. Project Configuration'!L238=\"SVD\",'I. Project Configuration'!L237,\"\")","v":""}]
[null,{"$f":"'I. Project Configuration'!N24","v":0}]
[]
[null,null,"ter kv",{"$f":"'I. Project Configuration'!H272","v":13.8}]
[null,null,null,{"$f":"'I. Project Configuration'!K272","v":0}]
[null,null,null,{"$f":"'I. Project Configuration'!N272","v":0}]
[null,null,null,{"$f":"'I. Project Configuration'!H306","v":0}]
[null,null,null,{"$f":"'I. Project Configuration'!K306","v":0}]
[null,null,null,{"$f":"'I. Project Configuration'!N306","v":0}]